Cogmind - Beta 14 *** ADVENTURER MODE // 2025.04.30 @ 14:52:37 // Winter2019/RPGLIKE Player: Gallgagger Result: Destroyed 0b10! Performance ------------- Evolutions (9) 4500 Regions Visited (25) 5000 Robots Destroyed (585) 2925 Value Destroyed (35543) 35543 Prototype IDs (97) 1940 Alien Tech Used (11) 2200 Bonus (52599) 52599 TOTAL SCORE: 104707 Bonus ------- Triggered High Security 500 High Alert Combat Kills 30058 Follower Combat Kills 3738 Entered Garrisons 800 Used RIF Installer 3000 Built Enhanced Grunts 300 Met R17 at Cetus 500 Used Core Reset Matrix 3000 Met R17 at Research 2000 Met Sigix 2000 Escaped with Sigix 5000 Destroyed MAIN.C Guards 500 Win 3000 Friendly Fire -1797 Cogmind --------- Core Integrity 850/1050 Matter 300/300 Energy 284/290 System Corruption 17% Temperature Cool (12) Movement Flying (31) Location Tau Ceti IV Orbit Parts ------- > --- POWER (3) -------- Micro Antimatter Reactor Micro Antimatter Reactor Light Quantum Reactor > --- PROPULSION (6) --- Electron Diverter Electron Diverter (fused) Impulse Thruster Array Impulse Thruster Array > --- UTILITY (13) ----- Experimental Cooling System Quantum Shading Machine Experimental Sensor Array Advanced Signal Interpreter Advanced Target Analyzer Experimental Target Analyzer Experimental Core Analyzer Energy Filter Particle Accelerator Advanced Kinecellerator Advanced Transmission Jammer Advanced Dynamic Insulation System > --- WEAPON (4) ------- Multirail Multirail Multirail Multirail > --- INVENTORY (8) ---- Protomatter-71 Protomatter-49 Core Regenerator Microwarp Drive Sigix Sheargun Sigix Containment Pod Peak State ------------ > --- POWER ------------ Micro Antimatter Reactor Micro Antimatter Reactor Light Quantum Reactor > --- PROPULSION ------- Electron Diverter Electron Diverter Impulse Thruster Array Impulse Thruster Array > --- UTILITY ---------- Experimental Heat Sink Advanced Gravity Neutralizer Advanced Signal Interpreter Advanced Target Analyzer Advanced Target Analyzer Experimental Core Analyzer Particle Accelerator Advanced Weapon Cycler Graphene Brace Improved Remote Force Field Experimental Hacking Suite Microwarp Drive > --- WEAPON ----------- Sigix Shearcannon Sigix Shearcannon > --- INVENTORY -------- Protomatter Protomatter Experimental Sensor Array Advanced Transmission Jammer Core Regenerator Sigix Sheargun Sigix Containment Pod [Rating: 248] Favorites ----------- Power Light Nuclear Core Engine Ion Engine Power Core Light Nuclear Core Reactor Micro Antimatter Reactor Propulsion Electron Diverter Flight Unit Electron Diverter Utility Experimental Sensor Array Device Experimental Sensor Array Processor Advanced Target Analyzer Hackware System Shield Protection Centrium Light Armor Plating Artifact Microwarp Drive Weapon Sigix Shearcannon Energy Gun KN-7UR's Autopenetrator Energy Cannon Sigix Shearcannon Ballistic Gun Railgun Ballistic Cannon Linear Accelerator Special Weapon Remote Datajack Slashing Weapon Phasing Sabre Build | -11 -10 -10 -10 -9 -8 -7 -7 -7 -7 -7 -5 -5 -5 -5 -4 -4 -4 -4 -3 -3 -2 -2 -2 -1 -1 ------- Run | Yrd Mat Min Exi Min Mat Fac Gar Fac Sto Rec Fac Gar Fac Gar Fac Gar Ext Cet Res Tes Res Qua Sec Acc Com Slots Evolved 22 | 5 . . . 1 5 2 . 2 . . . 2 . . . 1 . . 1 . . 2 . . 1 Power 2 | 1 . . . . 1 . . . . . . . . . . . . . . . . . . . . Propulsion 5 | 1 . . . 1 1 1 . . . . . . . . . . . . . . . . . . 1 Utility 12 | 2 . . . . 3 1 . 1 . . . 2 . . . 1 . . 1 . . 1 . . . Weapon 3 | 1 . . . . . . . 1 . . . . . . . . . . . . . 1 . . . Parts Attached 382 | 2 9 1 . 5 13 5 4 23 11 1 2 3 5 7 . 3 4 3 28 18 . 6 15 87 127 Power 35 | 2 . . . . 5 . 2 5 1 . 1 . . 3 . . 1 . 1 . . . . 13 1 Engine 4 | 2 . . . . 1 . . 1 . . . . . . . . . . . . . . . . . Core 13 | . . . . . 4 . 2 4 . . 1 . . 1 . . . . . . . . . 1 . Reactor 18 | . . . . . . . . . 1 . . . . 2 . . 1 . 1 . . . . 12 1 Propulsion 31 | . 3 . . . 2 3 1 4 . . . . 2 . . . 1 . 2 4 . . . 1 8 Treads . | . . . . . . . . . . . . . . . . . . . . . . . . . . Leg . | . . . . . . . . . . . . . . . . . . . . . . . . . . Wheel . | . . . . . . . . . . . . . . . . . . . . . . . . . . Hover . | . . . . . . . . . . . . . . . . . . . . . . . . . . Flight 31 | . 3 . . . 2 3 1 4 . . . . 2 . . . 1 . 2 4 . . . 1 8 Utility 240 | . 4 . . 3 4 1 . 4 . . 1 3 2 2 . 3 . 3 20 10 . 2 11 67 100 Device 198 | . 2 . . 3 2 1 . 3 . . 1 3 2 2 . 1 . . 13 6 . 2 7 65 85 Storage . | . . . . . . . . . . . . . . . . . . . . . . . . . . Processor 23 | . 2 . . . 2 . . . . . . . . . . . . . 2 . . . 3 2 12 Hackware 9 | . . . . . . . . 1 . . . . . . . 2 . 2 . 3 . . . . 1 Protection 8 | . . . . . . . . . . . . . . . . . . 1 5 1 . . 1 . . Artifact 2 | . . . . . . . . . . . . . . . . . . . . . . . . . 2 Weapon 76 | . 2 1 . 2 2 1 1 10 10 1 . . 1 2 . . 2 . 5 4 . 4 4 6 18 Energy Gun 20 | . . . . . . . . . 6 1 . . . . . . 1 . 1 2 . 1 3 2 3 Energy Cannon 14 | . 1 . . . . . . . 1 . . . . . . . 1 . . 1 . 1 1 4 4 Ballistic Gun 29 | . . . . 1 2 1 1 8 3 . . . 1 1 . . . . 1 . . . . . 10 Ballistic Cannon 7 | . 1 1 . . . . . . . . . . . . . . . . 2 1 . 1 . . 1 Launcher . | . . . . . . . . . . . . . . . . . . . . . . . . . . Special Weapon 4 | . . . . 1 . . . 2 . . . . . . . . . . 1 . . . . . . Impact Weapon . | . . . . . . . . . . . . . . . . . . . . . . . . . . Slashing Weapon 2 | . . . . . . . . . . . . . . 1 . . . . . . . 1 . . . Piercing Weapon . | . . . . . . . . . . . . . . . . . . . . . . . . . . Special Melee Weapon . | . . . . . . . . . . . . . . . . . . . . . . . . . . Unidentified Prototypes 54 | . 1 . . 2 . . . 4 6 1 . . . . . . 1 . 5 9 . 3 . 1 21 Parts Lost 1 | . . . . . . . . . . . . . . . . . . . . 1 . . . . . Power . | . . . . . . . . . . . . . . . . . . . . . . . . . . Propulsion . | . . . . . . . . . . . . . . . . . . . . . . . . . . Utility 1 | . . . . . . . . . . . . . . . . . . . . 1 . . . . . Weapon . | . . . . . . . . . . . . . . . . . . . . . . . . . . Highest Loss Streak 1 | . . . . . . . . . . . . . . . . . . . . 1 . . . . . To Critical Strikes . | . . . . . . . . . . . . . . . . . . . . . . . . . . Average Slot Usage (%) 88 | . 66 77 77 81 89 100 97 93 94 94 94 90 90 94 95 92 95 93 94 93 95 88 82 87 82 Core 4 | . . . . . 14 18 17 14 10 10 10 10 9 7 4 4 4 4 2 . . . . . . Reactor 7 | . . . . . . . . . 4 5 5 5 4 5 9 9 9 9 10 13 13 12 12 12 11 Flight 18 | . 21 22 22 20 25 27 26 22 21 21 21 20 19 19 19 18 18 18 17 17 17 16 16 16 15 Device 27 | . 8 22 22 20 22 27 29 23 26 26 26 25 32 33 33 31 31 22 28 26 26 27 31 30 29 Processor 10 | . 13 11 11 10 8 12 11 10 10 10 10 10 9 9 9 8 4 4 4 4 4 4 6 13 13 Hackware 5 | . . . . . . . . 4 5 5 5 5 4 4 4 6 13 18 17 17 17 11 4 4 3 Energy Gun 2 | . . . . . . . . . 5 5 5 5 4 4 4 4 4 4 . 3 4 4 4 3 . Energy Cannon 2 | . 10 . . . . . . . . . . . . . . . . . . 2 . . 2 4 5 Ballistic Gun 2 | . . . . 2 10 12 11 10 4 5 5 5 . 2 . . . . . . . . . . . Special Weapon 2 | . . . . 9 2 . . 3 5 5 5 5 4 4 4 4 4 4 4 4 4 4 . . . Peak Build Rating 248 | 2 12 15 14 23 50 60 73 87 88 89 94 102 113 127 124 132 124 130 157 171 167 193 196 215 248 Average Rating 142 | 1 10 13 14 19 41 53 66 79 86 86 91 94 106 118 124 124 123 126 145 161 167 182 185 199 227 On Entrance 97 | . 2 12 14 14 23 50 60 73 87 85 89 94 102 113 124 124 124 124 130 157 167 167 182 196 215 Naked Turns . | . . . . . . . . . . . . . . . . . . . . . . . . . . Heaviest Build 98 | 8 13 14 14 15 27 31 34 40 43 40 49 50 50 53 53 53 53 56 65 70 63 68 80 95 98 Greatest Support 98 | 8 15 15 15 15 29 35 41 42 41 41 50 50 57 57 55 55 55 60 71 71 73 73 85 85 98 Greatest Overweight (x) 2 | . . . . . 1 . 2 . 1 . . . . . . . . . . . . . . 1 2 Average Overweight (x) . | . . . . . . . . . . . . . . . . . . . . . . . . . . Largest Inventory Capacity 8 | 1 1 1 1 1 1 1 1 3 3 3 3 3 3 4 4 4 4 4 4 4 4 4 7 8 8 Average Capacity 4 | 1 1 1 1 1 1 1 1 1 3 3 3 3 3 3 4 4 4 4 4 4 4 4 6 7 8 Most Carried 8 | . . 1 1 1 1 1 1 3 2 3 3 3 3 4 4 4 4 4 4 4 3 4 6 8 8 Average Carried 4 | . . . 1 . . . 1 1 2 2 3 3 2 3 4 4 4 4 3 3 3 2 4 7 7 Final Capacity 8 | 1 1 1 1 1 1 1 1 3 3 3 3 3 3 4 4 4 4 4 4 4 4 4 7 8 8 Final Carried 8 | . . 1 1 1 . 1 1 2 2 3 3 3 3 4 4 4 4 4 4 3 3 4 6 7 8 Class Distribution -------------------- 39% | Hacker-Scout 17% | Alien-Sprinter 14% | Alien-Scout 5% | Hacker-Ninja 4% | Bothacker-Ninja 4% | Hacker-Sprinter 3% | Commander-Ninja 3% | Botlord-Ninja Dominant Class ---------------- Mutant | -10/Materials Scout | -10/Mines Hacker-Scout | -10/Exiles Hacker-Scout | -9/Mines Hacker-Scout | -8/Materials Hacker-Scout | -7/Factory Hacker-Scout | -7/Garrison Hacker-Scout | -7/Factory Hacker-Scout | -7/Storage Hacker-Scout | -7/Recycling Hacker-Scout | -5/Factory Hacker-Scout | -5/Garrison Hacker-Scout | -5/Factory Hacker-Scout | -5/Garrison Hacker-Ninja | -4/Factory Hacker-Ninja | -4/Garrison Botlord-Ninja | -4/Extension Commander-Ninja | -4/Cetus Bothacker-Ninja | -3/Research Hacker-Scout | -3/Testing Hacker-Scout | -2/Research Hacker-Ninja | -2/Quarantine Alien-Scout | -2/Section 7 Alien-Scout | -1/Access Alien-Sprinter | -1/Command Resources | -11 -10 -10 -10 -9 -8 -7 -7 -7 -7 -7 -5 -5 -5 -5 -4 -4 -4 -4 -3 -3 -2 -2 -2 -1 -1 ----------- Run | Yrd Mat Min Exi Min Mat Fac Gar Fac Sto Rec Fac Gar Fac Gar Fac Gar Ext Cet Res Tes Res Qua Sec Acc Com Matter Collected 7318 | 220 94 114 . 112 588 102 656 1155 425 44 36 52 139 168 . 25 50 45 532 472 165 255 148 463 1258 Remotely 25 | . . . . . . . . . . . . . . . . . . . . . . . . . 25 Salvage Created 41561 | . 331 22 . 135 813 256 737 1718 672 103 611 448 718 1242 . 1064 1668 110 85 584 363 306 661 2745 26169 Parts 1634 | . 16 . . 5 58 18 31 111 35 7 18 19 21 63 . 29 51 9 5 24 11 9 41 152 901 Haulers Intercepted 3 | . 1 . . . . . . 1 . . 1 . . . . . . . . . . . . . . Recyclers Shooed 3 | . . . . . . . . 1 . . . . 2 . . . . . . . . . . . . Parts Field Recycled . | . . . . . . . . . . . . . . . . . . . . . . . . . . Retrieved Matter . | . . . . . . . . . . . . . . . . . . . . . . . . . . Parts Self-Destructed . | . . . . . . . . . . . . . . . . . . . . . . . . . . Prevented . | . . . . . . . . . . . . . . . . . . . . . . . . . . Kills | -11 -10 -10 -10 -9 -8 -7 -7 -7 -7 -7 -5 -5 -5 -5 -4 -4 -4 -4 -3 -3 -2 -2 -2 -1 -1 ------- Run | Yrd Mat Min Exi Min Mat Fac Gar Fac Sto Rec Fac Gar Fac Gar Fac Gar Ext Cet Res Tes Res Qua Sec Acc Com Combat Hostiles Destroyed 618 | . 6 1 . 4 26 5 19 29 13 2 6 14 9 39 . 21 29 4 3 6 4 3 8 35 332 Melee 4 | . . . . . . . . . . . . . . . . . . . 1 . . 3 . . . Guns 221 | . . . . . 26 5 19 29 13 2 4 13 6 37 . 16 16 1 . . . . . 9 25 Cannons 359 | . 6 1 . 4 . . . . . . . . . . . . . . 2 4 2 . 8 25 307 AOE 4 | . . . . . . . . . . . . . . . . . . . . 1 2 . . 1 . Classes Destroyed 28 | . 4 . . 2 3 3 2 1 . . . 1 . 1 . 1 . . . 2 . . . 1 7 Worker 13 | . 1 . . . 2 2 . 3 . . . . 1 . . . . . . . . . . . 4 Builder 5 | . . . . . . . . 2 . . . . . . . . . . . . . . . 3 . Hauler 3 | . 1 . . . . . . 1 . . 1 . . . . . . . . . . . . . . Recycler 13 | . . . . . . 2 . 3 . . . . . . . . . . . 1 . . . 2 5 Carrier 2 | . . . . . . . . . . . . . . . . . . . . . . . . . 2 Mechanic 8 | . . . . . . . . . . . . . . . . . . . . . . . . . 8 Operator 4 | . . . . . . 1 . . . . . . . . . . . . . . . . . 2 1 Drone 1 | . . . . . . . 1 . . . . . . . . . . . . . . . . . . Watcher 43 | . 3 . . . 4 2 . 4 1 . 1 . 4 . . . 1 . 1 3 . . 1 7 11 Swarmer 88 | . . . . . 7 3 4 5 2 . . 6 . 23 . 4 . . . . 2 . . 7 25 Cutter 10 | . . . . . . . . . . . . 2 . . . . . . . . . . . 2 6 Saboteur 10 | . . . . . . . . . . . . . . 2 . . . . . . . . . . 8 Grunt 217 | . 6 1 . 2 10 . 8 11 6 . 4 . 5 9 . 14 12 . 1 2 2 1 . 7 116 Brawler 24 | . . . . 1 . . . . . . . . 1 1 . . 1 . . . . . . . 20 Duelist 28 | . . . . 1 . . 1 2 . . . . 1 . . . 1 . . . . . . . 22 Protector 11 | . . . . . . . . . . . . . . . . . . . . . . . . . 11 Researcher 1 | . . . . . . . . . . . . . . . . . . . . 1 . . . . . Sentry 55 | . . . . . 8 1 2 7 5 2 2 1 1 4 . 1 8 . 2 . 1 . 1 3 6 Demolisher 6 | . . . . . . . . . . . . . . . . . . . . . . . . . 6 Specialist 8 | . . . . . . . 1 . . . . . . . . . 1 . . . . . . . 6 Hunter 58 | . . . . . 1 . 2 . . . . 2 1 . . 3 2 . . 2 . 1 . 9 35 Programmer 54 | . . . . . . 1 . 4 . . . 3 . . . . 1 . . 2 . 1 7 7 28 Heavy 1 | . . . . . . . . . . . . . . . . . . . . . . . . . 1 Behemoth 4 | . . . . . . . . . . . . . . . . 1 1 . . . . . . . 2 Cetus Guard 4 | . . . . . . . . . . . . . . . . . . 4 . . . . . . . M Guard 2 | . . . . . . . . . . . . . . . . . . . . . . . . . 2 Combat Programmer 2 | . . . . . . . . . . . . . . . . . . . . . . . . . 2 Striker 15 | . . . . . . . . . . . . . . . . . . . . 1 . . . . 14 Executioner 20 | . . . . . . . . . . . . . . . . . . . . . . . . . 20 Alpha 7 2 | . . . . . . . . . . . . . . . . . . . . . . . . . 2 Assembled 1 | . . . . . . . . . . . . . . . . . . . . . . . . 1 . Savage 2 | . . . . . . . . . . . . . . . . . 2 . . . . . . . . Butcher 1 | . . . . . . . . . . . . . . 1 . . . . . . . . . . . Best Kill Streak 49 | . 5 1 . 2 9 4 4 8 3 1 5 8 10 8 . 8 7 3 1 2 4 1 3 8 49 Combat Bots Only 45 | . 3 1 . 2 5 2 4 6 3 1 3 8 7 8 . 8 7 3 1 2 4 1 3 7 45 Max Kills in Single Turn 5 | . 1 1 . 1 2 4 1 3 1 1 2 2 1 3 . 2 2 1 1 1 3 1 1 2 5 Gunslinging 1 | . . . . . . . . . . . . . . . . . . . . . . . . . 1 Exploded 2 | . . . . . . . . . . . . . . . . . . . . 1 2 . . 1 . Melee 1 | . . . . . . . . . . . . . . . . . . . 1 . . 1 . . . Uniques/NPCs Destroyed . | . . . . . . . . . . . . . . . . . . . . . . . . . . Combat | -11 -10 -10 -10 -9 -8 -7 -7 -7 -7 -7 -5 -5 -5 -5 -4 -4 -4 -4 -3 -3 -2 -2 -2 -1 -1 -------- Run | Yrd Mat Min Exi Min Mat Fac Gar Fac Sto Rec Fac Gar Fac Gar Fac Gar Ext Cet Res Tes Res Qua Sec Acc Com Hostile Shots Fired 2559 | . 26 9 . 1 80 42 170 261 171 51 15 62 23 96 . 132 156 32 55 117 29 36 33 156 806 Missed 1168 | . 15 5 . 1 34 21 73 126 93 20 7 33 9 40 . 56 74 11 22 52 13 11 16 74 362 Damage Taken 21298 | . 93 34 . . 461 244 752 1169 511 246 114 482 207 716 . 1124 1407 438 472 1020 318 440 416 1918 8716 Core 16945 | . 74 27 . . 367 191 603 926 395 189 91 390 169 580 . 901 1160 351 354 808 224 332 326 1466 7021 Absorbed by Shields 219 | . . . . . . . 9 . . . . . . . . 47 . 69 . . . . . . 94 Redirected to Core 14198 | . 56 19 . . 299 164 452 731 323 145 77 314 128 438 . 731 848 307 300 711 224 312 289 1276 6054 Ignored by Resistances 8355 | . 47 16 . . 212 109 348 514 248 131 50 163 84 295 . 507 567 200 212 375 133 177 131 674 3162 Regen/Repaired (Parts) 28 | . . . . . . . . . . . . . . . . . . . . . . 28 . . . Core Remaining (%) 88 | 100 . . . 100 88 . . . . 96 . . . 100 . . . 100 . 100 . . 34 . 80 Volleys Fired 1452 | . 45 12 . 8 65 17 69 126 56 13 22 53 51 87 . 65 94 16 30 78 19 18 58 106 344 Largest 4 | . 1 1 . 1 2 2 2 2 2 2 1 1 2 1 . 1 1 1 1 2 2 1 2 2 4 Hottest 360 | . 60 48 . 48 128 53 63 63 75 80 120 120 145 120 . 120 120 120 66 141 106 66 280 280 360 Shots Fired 2224 | . 45 12 . 8 123 34 113 229 111 22 22 53 55 86 . 65 94 16 31 87 26 18 75 193 706 Gun 1302 | . . . . . 112 34 113 229 111 22 22 53 55 86 . 65 94 11 . 28 7 1 58 87 114 Cannon 874 | . 45 12 . 8 . . . . . . . . . . . . . . 31 46 9 8 17 106 592 Launcher . | . . . . . . . . . . . . . . . . . . . . . . . . . . Special 48 | . . . . . 11 . . . . . . . . . . . . 5 . 13 10 9 . . . Kinetic 727 | . 15 12 . 8 112 34 113 229 40 13 . 11 5 23 . . . . 31 14 9 8 . . 50 Thermal 458 | . 30 . . . 11 . . . 36 . 22 42 50 63 . 65 94 11 . 32 . . 2 . . Explosive . | . . . . . . . . . . . . . . . . . . . . . . . . . . Electromagnetic 80 | . . . . . . . . . 35 9 . . . . . . . . . 28 7 1 . . . Slashing 922 | . . . . . . . . . . . . . . . . . . . . . . . 73 193 656 Robot Hit Streak 79 | . 11 9 . 9 23 10 53 16 20 18 31 16 29 32 . 47 41 24 15 10 7 10 25 45 79 Robot Miss Streak 8 | . 2 1 . 1 6 3 6 4 1 1 3 8 4 4 . 5 2 3 1 3 1 . 3 5 5 Penetration Max 2 | . . . . . 1 . . 1 1 . 2 1 1 2 . 1 2 2 . 2 1 1 . 1 2 Secondary Targets 8 | . . . . . 1 1 2 1 1 . . . . . . . . . . . . . . . 2 Max Gunslinging Chain 1 | . . . . . 1 1 1 1 1 . . . . . . . . . . . . . . . 1 Shots Hit Robots 1522 | . 37 5 . 7 95 26 76 137 91 20 16 35 34 59 . 65 80 15 29 60 18 22 30 110 455 Core Hits 2443 | . 11 2 . 4 56 26 79 66 37 6 31 43 62 116 . 109 165 27 10 26 12 3 27 161 1364 Critical Kills 11 | . . 1 . 1 . . . 3 . . . . . . . . . . . 1 . . . . 5 Critical Parts Destroyed 11 | . . 1 . 1 2 . . . 1 1 . . . . . . . . . . . . . . 5 Critical Strikes 421 | . . 2 . 3 2 . . 3 4 2 . . . . . . . . 2 1 . 1 6 35 360 Burn 2 | . . . . . . . . . 2 . . . . . . . . . . . . . . . . Meltdown 1 | . . . . . . . . . . . . . . . . . . . . 1 . . . . . Destroy 22 | . . 2 . 3 2 . . 3 1 1 . . . . . . . . . . . . . . 10 Corrupt 2 | . . . . . . . . . 1 1 . . . . . . . . . . . . . . . Sever 394 | . . . . . . . . . . . . . . . . . . . 2 . . 1 6 35 350 Melee Attacks 68 | . . . . . . . . . . . . . . 4 . 10 2 . 7 1 . 28 16 . . Impact . | . . . . . . . . . . . . . . . . . . . . . . . . . . Slashing 68 | . . . . . . . . . . . . . . 4 . 10 2 . 7 1 . 28 16 . . Piercing . | . . . . . . . . . . . . . . . . . . . . . . . . . . Sneak Attacks . | . . . . . . . . . . . . . . . . . . . . . . . . . . Combat Hostiles . | . . . . . . . . . . . . . . . . . . . . . . . . . . Follow-up Attacks . | . . . . . . . . . . . . . . . . . . . . . . . . . . Damage Inflicted 128851 | . 671 92 . 197 2126 1016 1616 4291 2140 371 902 1316 1806 3259 . 3450 5785 692 1307 2524 596 1103 1921 7995 83675 Guns 34605 | . . . . . 2024 537 1616 4044 2140 371 902 1316 1806 3259 . 3450 5785 692 . 101 16 4 411 1634 4497 Cannons 90446 | . 671 92 . 197 . . . . . . . . . . . . . . 1063 1519 193 . 1510 6126 79075 Explosions 2317 | . . . . . . 479 . 247 . . . . . . . . . . . 866 387 . . 235 103 Melee 1381 | . . . . . . . . . . . . . . . . . . . 244 38 . 1099 . . . Ramming . | . . . . . . . . . . . . . . . . . . . . . . . . . . Kinetic 13339 | . 241 92 . 197 2024 537 1616 4044 988 216 . . 19 . . . . . 1063 430 193 . . . 1679 Thermal 21097 | . 430 . . . 102 479 . . 553 . 902 1316 1787 3259 . 3450 5785 692 . 1955 387 . . . . Explosive 585 | . . . . . . . . 247 . . . . . . . . . . . . . . . 235 103 Electromagnetic 875 | . . . . . . . . . 599 155 . . . . . . . . . 101 16 4 . . . Impact . | . . . . . . . . . . . . . . . . . . . . . . . . . . Slashing 92955 | . . . . . . . . . . . . . . . . . . . 244 38 . 1099 1921 7760 81893 Piercing . | . . . . . . . . . . . . . . . . . . . . . . . . . . Highest Corruption 17 | . . . . . . . . 1 2 2 . 4 4 4 . . . 1 4 5 . 1 8 1 17 Average Corruption 6 | . . . . . . . . 1 1 2 . 3 4 4 . . . 1 4 4 . 1 3 1 10 Corruption Purged . | . . . . . . . . . . . . . . . . . . . . . . . . . . Corruption Blocked . | . . . . . . . . . . . . . . . . . . . . . . . . . . Effects 280 | . . . . . . . . 4 4 4 . 7 15 17 . . . 2 9 21 . 2 17 10 168 Message Errors 58 | . . . . . . . . 1 . 1 . 1 1 9 . . . 1 3 4 . . 2 3 32 Matter Fused 66 | . . . . . . . . 2 1 1 . 2 3 2 . . . . 2 5 . 1 7 2 38 Heat Flow Errors 40 | . . . . . . . . . 2 1 . 2 3 1 . . . . 1 1 . . 2 2 25 Energy Discharges 34 | . . . . . . . . . . 1 . . 2 1 . . . . . 6 . 1 2 2 19 Parts Rejected 5 | . . . . . . . . . . . . . . 1 . . . . . 2 . . . . 2 Parts Fused 4 | . . . . . . . . . . . . 1 . . . . . . . 1 . . . . 2 Data Loss (minor) 24 | . . . . . . . . . . . . 1 3 1 . . . 1 2 . . . 3 . 13 Data Loss (major) 11 | . . . . . . . . . . . . . 1 . . . . . . 1 . . 1 . 8 Misfires 8 | . . . . . . . . . . . . . . . . . . . 1 . . . . . 7 Alerts 2 | . . . . . . . . . . . . . 1 1 . . . . . . . . . . . Misdirections 10 | . . . . . . . . . . . . . . . . . . . . . . . . . 10 Weapon Failures 18 | . . . . . . . . 1 1 . . . 1 1 . . . . . 1 . . . 1 12 Overload Shots . | . . . . . . . . . . . . . . . . . . . . . . . . . . Overflow Damage 1209 | . 17 . . . . 209 . 60 . . . . . . . . . . 15 155 38 202 17 61 435 Projectiles 622 | . 17 . . . . . . . . . . . . . . . . . 15 77 . . 17 61 435 Explosions 385 | . . . . . . 209 . 60 . . . . . . . . . . . 78 38 . . . . Melee 202 | . . . . . . . . . . . . . . . . . . . . . . 202 . . . Knockbacks 17 | . 4 1 . 1 . . . . . . . . . . . . . . 7 4 . . . . . Impact . | . . . . . . . . . . . . . . . . . . . . . . . . . . Kinetic 16 | . 4 1 . 1 . . . . . . . . . . . . . . 7 3 . . . . . Secondary 1 | . . . . . . . . . . . . . . . . . . . . 1 . . . . . Self-Inflicted Damage 233 | . . . . . . 51 . . . . . . . . . . . . . 56 24 . . 102 . Shots 4 | . . . . . . 1 . . . . . . . . . . . . . 1 1 . . 1 . Rammed . | . . . . . . . . . . . . . . . . . . . . . . . . . . Targets Rammed . | . . . . . . . . . . . . . . . . . . . . . . . . . . Kicked . | . . . . . . . . . . . . . . . . . . . . . . . . . . Crushed . | . . . . . . . . . . . . . . . . . . . . . . . . . . Highest Temperature 350 | . 202 . . . 19 4 9 16 200 223 170 160 186 67 . 42 42 4 217 219 . . 233 304 350 Average Temperature 70 | . 59 . . . 4 2 4 6 84 101 74 86 108 67 . 24 24 4 118 112 . . 50 66 80 Received Heat Transfer 3558 | . 102 21 . . 252 90 243 432 270 150 63 18 63 207 . 208 234 94 132 115 63 81 18 18 684 Effects 3 | . . . . . . . . . . . . . . . . . . . 1 . . . . . 2 Shutdowns 1 | . . . . . . . . . . . . . . . . . . . . . . . . . 1 Energy Bleed 1 | . . . . . . . . . . . . . . . . . . . 1 . . . . . . Interference 1 | . . . . . . . . . . . . . . . . . . . . . . . . . 1 Siege Activations . | . . . . . . . . . . . . . . . . . . . . . . . . . . Robots Corrupted . | . . . . . . . . . . . . . . . . . . . . . . . . . . Combat Hostiles . | . . . . . . . . . . . . . . . . . . . . . . . . . . Parts Fried 9 | . . . . . . . . . 2 1 . . . . . . 2 . . . . . . . 4 Impact Corruptions . | . . . . . . . . . . . . . . . . . . . . . . . . . . Robots Melted 30 | . . . . . . . . . . . 2 1 3 2 . 5 13 3 . 1 . . . . . Combat Hostiles 30 | . . . . . . . . . . . 2 1 3 2 . 5 13 3 . 1 . . . . . Parts Melted 138 | . 3 . . . . . . . . . 3 14 17 15 . 31 42 6 . . . . . . 7 Heat Transferred 42312 | . 888 . . . 200 350 . . 1221 . 1950 2810 3925 6731 . 7750 13000 1575 . 1612 300 . . . . Parts Sabotaged 2 | . . . . . . . . . . . . . . 2 . . . . . . . . . . . Parts Stolen . | . . . . . . . . . . . . . . . . . . . . . . . . . . Parts Stripped . | . . . . . . . . . . . . . . . . . . . . . . . . . . Power Chain Reactions 7 | . . . . . . . . . . . . . . . . . . . . 5 2 . . . . Alert | -11 -10 -10 -10 -9 -8 -7 -7 -7 -7 -7 -5 -5 -5 -5 -4 -4 -4 -4 -3 -3 -2 -2 -2 -1 -1 ------- Run | Yrd Mat Min Exi Min Mat Fac Gar Fac Sto Rec Fac Gar Fac Gar Fac Gar Ext Cet Res Tes Res Qua Sec Acc Com Peak Influence 10453 | . 287 68 . 108 975 797 1189 1265 719 375 646 836 580 1406 621 1319 1531 865 510 593 353 364 405 1067 10453 Initial 746 | . . 28 . . 35 380 492 540 73 171 383 398 380 263 621 382 599 746 453 176 261 163 79 127 495 Average 1869 | . 95 48 . 73 490 538 889 684 411 281 530 625 469 851 621 967 1073 833 411 426 218 240 193 462 5974 Maximum Alert Level 5 | . 1 . . . 3 3 4 4 3 1 2 3 2 4 2 4 4 3 2 2 1 1 2 3 5 Low Security (%) 15 | 100 89 100 . 100 14 . . 20 19 12 . . . . . . . . . 2 44 31 57 25 . Level 1 13 | . 10 . . . 33 12 . 1 16 87 1 . 5 24 . 3 . . 32 42 55 68 38 16 . Level 2 23 | . . . . . 25 67 22 22 61 . 98 63 94 13 100 20 17 . 67 54 . . 3 41 2 Level 3 16 | . . . . . 27 19 52 50 2 . . 36 . 30 . 38 28 100 . . . . . 16 3 Level 4 7 | . . . . . . . 25 4 . . . . . 31 . 37 54 . . . . . . . 6 Level 5 . | . . . . . . . . . . . . . . . . . . . . . . . . . . High Security 21 | . . . . . . . . . . . . . . . . . . . . . . . . . 87 Max Security . | . . . . . . . . . . . . . . . . . . . . . . . . . . Squads Dispatched 101 | . 1 . . . 3 3 . 5 3 . 2 . 5 . . . 1 . 11 1 5 2 6 12 41 Investigation 20 | . 1 . . . 3 1 . . 2 . . . 3 . . . . . 4 . 1 . 1 2 2 Extermination 9 | . . . . . . 1 . 2 . . . . . . . . . . . . . 1 3 1 1 Reinforcement 29 | . . . . . . 1 . 1 1 . 2 . 1 . . . . . 7 1 4 1 2 6 2 Assault 43 | . . . . . . . . 2 . . . . 1 . . . 1 . . . . . . 3 36 Garrison . | . . . . . . . . . . . . . . . . . . . . . . . . . . Intercept . | . . . . . . . . . . . . . . . . . . . . . . . . . . Searches Triggered . | . . . . . . . . . . . . . . . . . . . . . . . . . . Construction Impeded 1 | . . . . . . . . . . . . . 1 . . . . . . . . . . . . Haulers Reinforced 6 | . . . . . . . . . . . 1 . . . . . . . 1 . 2 1 . 1 . Active Scanning Responses . | . . . . . . . . . . . . . . . . . . . . . . . . . . Cargo Convoy Interrupts 1 | . . . . . . . . 1 . . . . . . . . . . . . . . . . . Alert ID Control Effect 45 | . . . . . . . . . . . . . . . . . . 2 9 22 8 4 . . . Stealth | -11 -10 -10 -10 -9 -8 -7 -7 -7 -7 -7 -5 -5 -5 -5 -4 -4 -4 -4 -3 -3 -2 -2 -2 -1 -1 --------- Run | Yrd Mat Min Exi Min Mat Fac Gar Fac Sto Rec Fac Gar Fac Gar Fac Gar Ext Cet Res Tes Res Qua Sec Acc Com Distress Signals 21 | . 2 . . . . 1 . 1 1 . . . . . . . . 2 3 . 1 . 1 2 7 Communications Jammed 338 | . . . . . 6 15 . 22 27 . . . 4 . . . 29 101 7 . 88 5 23 4 7 Distress Signals 330 | . . . . . 6 14 . 20 27 . . . 4 . . . 29 101 7 . 88 5 22 . 7 Times Spotted 1079 | . 11 7 . 4 39 18 31 71 28 4 10 32 17 41 . 30 39 11 21 37 20 18 22 75 493 Peak Tracking Total 41 | . 3 17 . 2 5 3 4 9 5 1 3 7 4 7 . 6 9 5 5 5 8 4 3 13 41 Tactical Retreats 93 | . 1 1 . . 3 3 6 6 5 . 1 5 . 3 . . 1 . 4 3 3 3 3 10 32 Traps | -11 -10 -10 -10 -9 -8 -7 -7 -7 -7 -7 -5 -5 -5 -5 -4 -4 -4 -4 -3 -3 -2 -2 -2 -1 -1 ------- Run | Yrd Mat Min Exi Min Mat Fac Gar Fac Sto Rec Fac Gar Fac Gar Fac Gar Ext Cet Res Tes Res Qua Sec Acc Com Traps Triggered 38 | . . . . . . . 6 9 . . . . . 7 . 3 3 . 1 . . . . 2 7 Indirectly . | . . . . . . . . . . . . . . . . . . . . . . . . . . Trap Hack Attempts . | . . . . . . . . . . . . . . . . . . . . . . . . . . Triggered . | . . . . . . . . . . . . . . . . . . . . . . . . . . Disarmed . | . . . . . . . . . . . . . . . . . . . . . . . . . . Reprogrammed 4 | . . . . . . . . 4 . . . . . . . . . . . . . . . . . Reused . | . . . . . . . . . . . . . . . . . . . . . . . . . . Traps Extracted . | . . . . . . . . . . . . . . . . . . . . . . . . . . Installed . | . . . . . . . . . . . . . . . . . . . . . . . . . . Triggered . | . . . . . . . . . . . . . . . . . . . . . . . . . . Objects Rigged 3 | . . . . . 2 . . . 1 . . . . . . . . . . . . . . . . Machines | -11 -10 -10 -10 -9 -8 -7 -7 -7 -7 -7 -5 -5 -5 -5 -4 -4 -4 -4 -3 -3 -2 -2 -2 -1 -1 ---------- Run | Yrd Mat Min Exi Min Mat Fac Gar Fac Sto Rec Fac Gar Fac Gar Fac Gar Ext Cet Res Tes Res Qua Sec Acc Com Machines Disabled 70 | . . . . . . 4 3 8 5 . . 3 . . . 2 5 . 1 14 . 5 9 2 9 Max in Single Turn 4 | . . . . . . 4 1 4 1 . . 1 . . . 1 1 . . 1 . 1 1 1 2 Garrison Access 7 | . . . . . 1 . . . . . . . . . . . . . . 1 . . 1 4 . Garrison Relay 4 | . . . . . . . 2 . . . . . . . . 2 . . . . . . . . . Phase Generator 1 | . . . . . . . . . . . . . . . . . . . . . . . . . 1 Energy Cycler 1 | . . . . . . . . . . . . . . . . . . . . . . . . 1 . Machines Repaired . | . . . . . . . . . . . . . . . . . . . . . . . . . . Machines Dismantled . | . . . . . . . . . . . . . . . . . . . . . . . . . . Machines Sabotaged . | . . . . . . . . . . . . . . . . . . . . . . . . . . Overloaded Fab Kills . | . . . . . . . . . . . . . . . . . . . . . . . . . . Hacking | -11 -10 -10 -10 -9 -8 -7 -7 -7 -7 -7 -5 -5 -5 -5 -4 -4 -4 -4 -3 -3 -2 -2 -2 -1 -1 --------- Run | Yrd Mat Min Exi Min Mat Fac Gar Fac Sto Rec Fac Gar Fac Gar Fac Gar Ext Cet Res Tes Res Qua Sec Acc Com Machines Accessed 152 | . 6 . . 2 13 5 3 15 11 9 5 2 9 3 1 3 9 . 9 6 1 4 10 15 11 Terminals 112 | . 5 . . . 10 3 3 13 9 4 4 2 5 3 . 3 9 . 3 4 1 4 9 9 9 Fabricators 8 | . . . . . . 1 . 2 . . . . 3 . . . . . 1 . . . . 1 . Repair Stations . | . . . . . . . . . . . . . . . . . . . . . . . . . . Recycling Units 12 | . 1 . . . 2 . . . 2 5 . . . . . . . . . . . . . . 2 Scanalyzers 6 | . . . . . . . . . . . . . . . . . . . 5 1 . . . . . Garrison Access 12 | . . . . . 1 1 . . . . 1 . 1 . 1 . . . . 1 . . 1 5 . Total Hacks 398 | . 14 . . 2 39 14 5 52 20 37 10 4 26 6 1 9 17 . 34 16 5 10 15 30 32 Successful 255 | . 10 . . 2 31 7 3 44 18 28 9 2 14 3 1 2 9 . 15 7 4 5 8 15 18 Failed 141 | . 4 . . . 8 7 2 7 2 8 1 2 12 3 . 7 8 . 19 9 1 5 7 15 14 Catastrophic 13 | . . . . . . 1 1 2 . . . . 1 . . . . . 1 . . . 1 3 3 Database Lockouts 2 | . . . . . . . . 1 . 1 . . . . . . . . . . . . . . . Manual 173 | . 6 . . . 29 . . 18 12 23 7 . 10 . . . 2 1 7 3 3 3 9 15 25 Terminals 315 | . 13 . . . 36 9 5 50 18 30 9 4 17 6 . 9 17 . 9 11 5 10 13 20 24 Fabricators 21 | . . . . . . 4 . 2 . . . . 8 . . . . . 5 . . . . 2 . Repair Stations . | . . . . . . . . . . . . . . . . . . . . . . . . . . Recycling Units 20 | . 1 . . . 2 . . . 2 7 . . . . . . . . . . . . . . 8 Scanalyzers 24 | . . . . . . . . . . . . . . . . . . . 20 4 . . . . . Garrison Access 16 | . . . . . 1 1 . . . . 1 . 1 . 1 . . . . 1 . . 2 8 . Terminal Hacks 142 | . 6 . . 2 16 4 3 29 11 22 2 2 7 3 . 2 9 . 1 3 3 4 2 6 5 Record 3 | . . . . . . . . 3 . . . . . . . . . . . . . . . . . Part Schematic 8 | . . . . . 2 . . 1 . 1 . . 2 . . . . . . 1 . . . 1 . Robot Schematic 1 | . . . . . . 1 . . . . . . . . . . . . . . . . . . . Robot Analysis 13 | . 1 . . . 5 2 . 3 . . . . 1 . . . . . . 1 . . . . . Prototype ID Bank 28 | . 3 . . . 3 . . 4 1 14 1 . 1 . . . 1 . . . . . . . . Open Door 19 | . . . . 2 . . 1 . 4 . . . . 1 . . 6 . . 1 . 2 2 . . Level Access Points 1 | . . . . . . . . . . . . . . . . . 1 . . . . . . . . Branch Access Points 8 | . 1 . . . 2 1 . 1 . . . . 1 . . . . . . . 1 . . 1 . Emergency Access Points 5 | . . . . . . . 1 1 . . . 1 . 1 . 1 . . . . . . . . . Machine Index 3 | . . . . . . . . 1 . . . . . . . . . . . . . . . 1 1 Terminal Index 4 | . . . . . 1 . . 2 . 1 . . . . . . . . . . . . . . . Fabricator Index 1 | . . . . . . . . . . . . . . . . . . . . . . . . 1 . Recycling Unit Index 1 | . . . . . . . . . . 1 . . . . . . . . . . . . . . . Scanalyzer Index 1 | . . . . . . . . . . . . . . . . . . . 1 . . . . . . Garrison Index 1 | . . . . . . . . . . . . . . . . . . . . . 1 . . . . Alert Level 12 | . . . . . 1 . . 1 2 5 . . 1 . . . 1 . . . . . . . 1 Unreport Threat 12 | . . . . . 1 . . 7 . . . . 1 . . . . . . . 1 1 . . 1 Locate Traps 6 | . . . . . 1 . . 3 1 . . . . . . . . . . . . . . 1 . Reprogram Traps 1 | . . . . . . . . 1 . . . . . . . . . . . . . . . . . Dispatch Records 1 | . . . . . . . . . . . 1 . . . . . . . . . . . . . . Security Status 1 | . . . . . . . . 1 . . . . . . . . . . . . . . . . . Hauler Manifests 1 | . . . . . . . . . 1 . . . . . . . . . . . . . . . . Registered Components 1 | . . . . . . . . . 1 . . . . . . . . . . . . . . . . Registered Prototypes 3 | . . . . . . . . . 1 . . . . . . . . . . . . 1 . . 1 Zone Layout 2 | . 1 . . . . . . . . . . . . . . . . . . . . . . 1 . Garrison Registry 2 | . . . . . . . . . . . . 1 . . . 1 . . . . . . . . . Security Stations 2 | . . . . . . . 1 . . . . . . 1 . . . . . . . . . . . Disengage Seal 1 | . . . . . . . . . . . . . . . . . . . . . . . . . 1 Fabricator Hacks 13 | . . . . . . 2 . 2 . . . . 5 . . . . . 2 . . . . 2 . Network Status 1 | . . . . . . . . . . . . . 1 . . . . . . . . . . . . Load Schematic 7 | . . . . . . 1 . 2 . . . . 2 . . . . . 1 . . . . 1 . Build 5 | . . . . . . 1 . . . . . . 2 . . . . . 1 . . . . 1 . Repair Station Hacks . | . . . . . . . . . . . . . . . . . . . . . . . . . . Recycling Unit Hacks . | . . . . . . . . . . . . . . . . . . . . . . . . . . Scanalyzer 11 | . . . . . . . . . . . . . . . . . . . 9 2 . . . . . Insert Component 7 | . . . . . . . . . . . . . . . . . . . 6 1 . . . . . Analyze 4 | . . . . . . . . . . . . . . . . . . . 3 1 . . . . . Garrison Access Hacks 11 | . . . . . 1 1 . . . . 1 . 1 . 1 . . . . 1 . . 1 4 . Unlock Access 4 | . . . . . . 1 . . . . 1 . 1 . 1 . . . . . . . . . . Seal Access 7 | . . . . . 1 . . . . . . . . . . . . . . 1 . . 1 4 . Unauthorized Hacks 78 | . 4 . . . 14 . . 13 7 6 6 . 1 . . . . . 3 1 1 1 5 3 13 Terminals 62 | . 3 . . . 12 . . 13 5 1 6 . 1 . . . . . 2 1 1 1 5 3 8 Assimilate 13 | . . . . . 3 . . 3 . . 1 . . . . . . . 2 1 . . 1 1 1 Botnet 46 | . 3 . . . 8 . . 10 4 1 4 . 1 . . . . . . . 1 1 4 2 7 Detonate 2 | . . . . . 1 . . . 1 . . . . . . . . . . . . . . . . Disrupt 1 | . . . . . . . . . . . 1 . . . . . . . . . . . . . . Fabricators 1 | . . . . . . . . . . . . . . . . . . . 1 . . . . . . Prioritize 1 | . . . . . . . . . . . . . . . . . . . 1 . . . . . . Repair Stations . | . . . . . . . . . . . . . . . . . . . . . . . . . . Recycling Units 15 | . 1 . . . 2 . . . 2 5 . . . . . . . . . . . . . . 5 Reject 2 | . . . . . . . . . . . . . . . . . . . . . . . . . 2 Recyclers 1 | . . . . . . . . . . . . . . . . . . . . . . . . . 1 Mask 2 | . . . . . . . . . . . . . . . . . . . . . . . . . 2 Tunnel 10 | . 1 . . . 2 . . . 2 5 . . . . . . . . . . . . . . . Scanalyzers . | . . . . . . . . . . . . . . . . . . . . . . . . . . Garrison Access . | . . . . . . . . . . . . . . . . . . . . . . . . . . Data Cores Recovered 4 | . . . . . . . . 1 . . . . . . . . . . . . . 1 . 2 . Used 1 | . . . . . . . . . . . . . . . . . . . . . . 1 . . . Hacking Detections 94 | . 4 . . . 5 4 2 10 2 1 2 2 6 1 1 3 6 . 9 4 . 2 7 12 11 Full Trace Events 12 | . . . . . . 1 . . . . . . 3 . . 1 . . 4 . . . 1 1 1 Feedback Events 1 | . . . . . . . . . . . . . . . . . . . . . . . 1 . . Corruption 1 | . . . . . . . . . . . . . . . . . . . . . . . 1 . . Feedback Blocked . | . . . . . . . . . . . . . . . . . . . . . . . . . . Robot Schematics Acquired 4 | . . . . . . 1 . . . . . . . . . . . . . 3 . . . . . Robots Built . | . . . . . . . . . . . . . . . . . . . . . . . . . . Authchips . | . . . . . . . . . . . . . . . . . . . . . . . . . . Time . | . . . . . . . . . . . . . . . . . . . . . . . . . . Total Robot Build Rating . | . . . . . . . . . . . . . . . . . . . . . . . . . . Part Schematics Acquired 16 | . . . . . 2 . . 1 . 1 . . 2 . . . . . 1 8 . . . 1 . Parts Built 8 | . . . . . . 2 . . . . . . 4 . . . . . 1 . . . . 1 . Authchips . | . . . . . . . . . . . . . . . . . . . . . . . . . . Time 253 | . . . . . . 62 . . . . . . 95 . . . . . 34 . . . . 62 . Total Part Build Rating 45 | . . . . . . 4 . . . . . . 26 . . . . . 8 . . . . 7 . Parts Repaired . | . . . . . . . . . . . . . . . . . . . . . . . . . . Time . | . . . . . . . . . . . . . . . . . . . . . . . . . . Parts Recycled . | . . . . . . . . . . . . . . . . . . . . . . . . . . Recycled Matter . | . . . . . . . . . . . . . . . . . . . . . . . . . . Retrieved Matter . | . . . . . . . . . . . . . . . . . . . . . . . . . . Retrieved Components . | . . . . . . . . . . . . . . . . . . . . . . . . . . Parts Scanalyzed 2 | . . . . . . . . . . . . . . . . . . . 2 . . . . . . Part Schematics Acquired 1 | . . . . . . . . . . . . . . . . . . . 1 . . . . . . Parts Damaged 1 | . . . . . . . . . . . . . . . . . . . 1 . . . . . . Bothacking | -11 -10 -10 -10 -9 -8 -7 -7 -7 -7 -7 -5 -5 -5 -5 -4 -4 -4 -4 -3 -3 -2 -2 -2 -1 -1 ------------ Run | Yrd Mat Min Exi Min Mat Fac Gar Fac Sto Rec Fac Gar Fac Gar Fac Gar Ext Cet Res Tes Res Qua Sec Acc Com Used RIF Installer 6 | . . . . . . . 1 . . . . 2 . 1 . 2 . . . . . . . . . Coupler Efficiency 1 | . . . . . . . . . . . . . . . . 1 . . . . . . . . . Hotswap 1 | . . . . . . . . . . . . . . 1 . . . . . . . . . . . Signal Jammer 1 | . . . . . . . . . . . . 1 . . . . . . . . . . . . . Alert ID Control 1 | . . . . . . . . . . . . . . . . 1 . . . . . . . . . Autooverride 1 | . . . . . . . . . . . . 1 . . . . . . . . . . . . . Robots Hacked 25 | . . . . . . . . . . . . . . . . . 1 5 . 7 6 6 . . . Non-combat 3 | . . . . . . . . . . . . . . . . . . . . . 1 2 . . . Combat 22 | . . . . . . . . . . . . . . . . . 1 5 . 7 5 4 . . . Autooverrided 4 | . . . . . . . . . . . . . . . . . 1 2 . 1 . . . . . Robot Hacks Applied 26 | . . . . . . . . . . . . . . . . . . 5 . 8 7 6 . . . parse_system 3 | . . . . . . . . . . . . . . . . . . 2 . 1 . . . . . block_reporting 2 | . . . . . . . . . . . . . . . . . . . . . . 2 . . . mark_security 1 | . . . . . . . . . . . . . . . . . . . . . 1 . . . . disable_scanner 1 | . . . . . . . . . . . . . . . . . . . . 1 . . . . . locate_prototypes 4 | . . . . . . . . . . . . . . . . . . . . 1 . 3 . . . formatsys_low 1 | . . . . . . . . . . . . . . . . . . . . 1 . . . . . formatsys_high 14 | . . . . . . . . . . . . . . . . . . 3 . 4 6 1 . . . Relay Couplers Released 7 | . . . . . . . 3 . . . . . . . . 4 . . . . . . . . . Machine Destruction 7 | . . . . . . . 3 . . . . . . . . 4 . . . . . . . . . Attached 6 | . . . . . . . . . . . . . . . . 2 . 2 . 2 . . . . . Fabnet Peak Effective % . | . . . . . . . . . . . . . . . . . . . . . . . . . . Robots Rewired 32 | . . . . . . . 2 . . . . . . 8 . 2 18 . . 2 . . . . . Allies Hacked 2 | . . . . . . . . . . . . . . . . . 1 . . . . . . 1 . Hacks Repelled . | . . . . . . . . . . . . . . . . . . . . . . . . . . Allies | -11 -10 -10 -10 -9 -8 -7 -7 -7 -7 -7 -5 -5 -5 -5 -4 -4 -4 -4 -3 -3 -2 -2 -2 -1 -1 -------- Run | Yrd Mat Min Exi Min Mat Fac Gar Fac Sto Rec Fac Gar Fac Gar Fac Gar Ext Cet Res Tes Res Qua Sec Acc Com Total Allies 211 | . . 2 . 4 2 . 2 2 . . 1 . . 10 . 2 30 10 2 9 6 1 1 52 75 Largest Group 23 | . . 2 2 4 5 1 2 2 1 1 2 2 . 9 6 8 18 20 20 5 9 1 1 15 23 Highest-Rated Group 1380 | . . 45 45 71 81 10 56 56 26 26 36 36 . 258 176 440 789 1380 1380 495 680 152 26 227 537 Highest-Rated Ally 234 | . . 31 31 31 31 10 31 31 26 26 26 26 . 46 30 148 159 159 159 152 152 152 26 26 234 Total Orders 12 | . . . . . . 2 . 6 . . 2 1 . . . . . . . . . . 1 . . STAY 7 | . . . . . . 1 . 3 . . 1 1 . . . . . . . . . . 1 . . FOLLOW 5 | . . . . . . 1 . 3 . . 1 . . . . . . . . . . . . . . Ally Attacks 884 | . . . . . 40 . 7 17 . . . . . 9 . 73 59 20 108 59 38 14 . 173 267 Total Damage 23426 | . . . . . 399 . 190 262 . . . . . 158 . 1919 1658 753 3936 3282 2575 680 . 2889 4725 Kills 138 | . . . . . 7 . 2 2 . . . . . 2 . 7 12 3 16 22 8 5 . 26 26 Allies Corrupted 8 | . . . . . . . . . . . . . . 1 . . 1 . 1 . . . . 1 4 Allies Melted 1 | . . . . . . . . . . . . . . . . . . . 1 . . . . . . Intel | -11 -10 -10 -10 -9 -8 -7 -7 -7 -7 -7 -5 -5 -5 -5 -4 -4 -4 -4 -3 -3 -2 -2 -2 -1 -1 ------- Run | Yrd Mat Min Exi Min Mat Fac Gar Fac Sto Rec Fac Gar Fac Gar Fac Gar Ext Cet Res Tes Res Qua Sec Acc Com Robot Analysis Total 13 | . 1 . . . 5 2 . 3 . . . . 1 . . . . . . 1 . . . . . Derelict Logs Recovered 1 | . . 1 . . . . . . . . . . . . . . . . . . . . . . . Drone Launches . | . . . . . . . . . . . . . . . . . . . . . . . . . . Drone Recoveries . | . . . . . . . . . . . . . . . . . . . . . . . . . . Exploration | -11 -10 -10 -10 -9 -8 -7 -7 -7 -7 -7 -5 -5 -5 -5 -4 -4 -4 -4 -3 -3 -2 -2 -2 -1 -1 ------------- Run | Yrd Mat Min Exi Min Mat Fac Gar Fac Sto Rec Fac Gar Fac Gar Fac Gar Ext Cet Res Tes Res Qua Sec Acc Com Turns Passed 16959 | 26 406 349 65 291 606 393 679 1517 465 284 187 293 560 769 22 536 683 329 657 681 138 410 852 1621 4140 Spaces Moved 31221 | 47 800 560 174 533 1021 1036 965 3489 757 763 399 543 1285 1042 19 765 770 282 1520 1071 343 865 1806 3181 7185 Core 91 | 47 14 . . . . . 2 . . . . . . . . . . . . . . . . . 28 Treads . | . . . . . . . . . . . . . . . . . . . . . . . . . . Legs . | . . . . . . . . . . . . . . . . . . . . . . . . . . Wheels . | . . . . . . . . . . . . . . . . . . . . . . . . . . Hover . | . . . . . . . . . . . . . . . . . . . . . . . . . . Flight 31060 | . 786 560 174 533 1021 1036 963 3489 757 763 399 543 1285 1042 19 765 770 282 1520 1071 343 865 1806 3181 7087 Fastest Speed 22 | 50 37 37 37 37 29 26 26 28 28 28 28 28 26 26 29 29 29 29 29 28 27 27 29 26 22 Average Speed 29 | 50 37 37 37 37 30 27 27 28 28 28 28 28 28 28 29 29 29 29 29 28 28 28 29 28 29 Slowest Speed 150 | 50 50 37 37 37 104 29 150 31 101 28 28 28 34 29 29 29 29 29 31 31 29 29 29 94 150 Overloaded Moves 111 | . . . . . . . . . . . . . 15 20 . . . . . . 12 32 . 32 . Propulsion Burnouts . | . . . . . . . . . . . . . . . . . . . . . . . . . . Robots Hopped 244 | . 4 12 . 5 17 10 . 54 22 4 1 4 18 . . 8 11 6 12 5 3 . 5 13 30 Cave-ins Triggered . | . . . . . . . . . . . . . . . . . . . . . . . . . . Microwarps 3 | . . . . . . . . . . . . . . . . . . . . . . . . . 3 Exploration Rate (%) 62 | 3 78 78 62 96 89 29 86 79 84 96 12 51 28 92 1 73 87 69 41 91 10 85 77 67 61 Regions Visited 25 Branch Regions 11 Pre-discovered Areas 11 | . 1 1 . . 2 . . . 2 5 . . . . . . . . . . . . . . . Known Exits Taken 20 | . 1 1 1 1 1 1 . 1 1 1 1 . 1 . 1 . 1 1 1 1 1 1 1 1 . Unknown Exits Taken 1 | 1 . . . . . . . . . . . . . . . . . . . . . . . . . Scrap Searched 1 | . . 1 . . . . . . . . . . . . . . . . . . . . . . . Spaces Dug 147 | . . 2 . . 2 . . 28 . . 3 1 7 . . . 3 . 2 . 2 16 19 6 56 Terrain Destroyed 1308 | . . 4 . 1 5 23 1 111 11 . 6 8 12 9 . 5 7 2 8 88 16 16 43 80 852 Melee 13 | . . . . . . . . . . . . . . . . . . . 1 . . 11 1 . . Projectile 852 | . . 4 . 1 5 . 1 78 11 . . . . . . . . . 7 4 5 5 37 30 664 AOE 243 | . . . . . . 23 . 33 . . . . . . . . . . . 84 11 . . 18 74 Terrain Rammed . | . . . . . . . . . . . . . . . . . . . . . . . . . . Walls Destroyed . | . . . . . . . . . . . . . . . . . . . . . . . . . . Machines Disabled . | . . . . . . . . . . . . . . . . . . . . . . . . . . Actions | -11 -10 -10 -10 -9 -8 -7 -7 -7 -7 -7 -5 -5 -5 -5 -4 -4 -4 -4 -3 -3 -2 -2 -2 -1 -1 --------- Run | Yrd Mat Min Exi Min Mat Fac Gar Fac Sto Rec Fac Gar Fac Gar Fac Gar Ext Cet Res Tes Res Qua Sec Acc Com Total 36522 | 48 854 677 173 611 1143 1099 1260 3720 869 811 451 629 1408 1423 34 989 1118 507 1670 1356 362 958 2027 3716 8609 Wait 2083 | . 1 113 . 66 39 45 104 49 29 29 21 10 66 86 16 67 90 189 67 129 . 34 105 224 504 Move 30660 | 46 791 537 173 522 986 1016 963 3384 714 754 396 534 1248 1040 18 750 750 272 1495 1060 337 864 1795 3158 7057 Hop 221 | . 4 10 . 5 17 9 . 50 20 4 1 4 18 . . 5 8 3 12 5 2 . 5 9 30 Pick Up 48 | . . . . 1 . . . 1 . 1 . . . 4 . . . . 2 . . 2 5 2 30 Fast Attach 115 | 2 7 . . 2 7 1 1 9 . . . 3 2 3 . 3 2 1 4 5 . 5 10 13 35 Attach 20 | . . . . . 1 1 . . . . . . . 1 . . . . 2 1 . 1 3 1 9 Detach 6 | . . . . . . . . . . . . . 1 . . . . . 1 . . . 2 . 2 Swap 256 | . 2 1 . 3 5 3 3 14 11 1 2 . 3 3 . . 2 2 22 13 . 1 8 74 83 Drop 130 | . 1 1 . 2 1 1 4 6 . . 2 1 4 3 . 2 . . 8 4 . 5 6 18 61 Fire 1452 | . 45 12 . 8 65 17 69 126 56 13 22 53 51 87 . 65 94 16 30 78 19 18 58 106 344 Melee 68 | . . . . . . . . . . . . . . 4 . 10 2 . 7 1 . 28 16 . . Ram . | . . . . . . . . . . . . . . . . . . . . . . . . . . Kick . | . . . . . . . . . . . . . . . . . . . . . . . . . . Crush . | . . . . . . . . . . . . . . . . . . . . . . . . . . Escape Stasis 332 | . . . . . . . 91 24 . . . . . 127 . 27 18 . . . . . . 18 27 Rewire 130 | . . . . . . . 6 . 1 . . . . 23 . 7 82 . . 7 4 . . . . Trap . | . . . . . . . . . . . . . . . . . . . . . . . . . . Miscellaneous 1001 | . 3 3 . 2 22 6 19 57 38 9 7 24 15 42 . 53 70 24 20 53 . . 14 93 427 Route ------- -11/Scrapyard -10/Materials (discovered 3 exits: *Mat x2 / *Min) -10/Mines (discovered 3 exits: *Mat / *Exi / [*Sub]) -10/Exiles (discovered 2 exits: *Min x2) -9/Mines (discovered 2 exits: *Mat x2) -8/Materials (discovered 3 exits: *Fac x3) -7/Factory (discovered 5 exits: *Sto x2 / *Low x2 / Gar) -7/Garrison (discovered 3 exits: *Fac x3) -7/Factory (discovered 7 exits: *Fac x3 / *Sto x2 / *Low x2) -7/Storage (discovered 2 exits: *Fac / *Rec) -7/Recycling (discovered 2 exits: *Fac / [Scr]) -5/Factory (discovered 4 exits: Fac / *Upp x2 / Gar) -5/Garrison (discovered 3 exits: *Fac x3) -5/Factory (discovered 5 exits: *Fac x2 / Upp x2 / Gar) -5/Garrison (discovered 3 exits: *Fac x3) -4/Factory -4/Garrison (discovered 3 exits: *Ext x3) -4/Extension (discovered 3 exits: *Res x2 / *Cet) -4/Cetus (discovered 2 exits: *Res / [*Arc]) -3/Research (discovered 2 exits: *Res / *Tes) -3/Testing -2/Research (discovered 3 exits: *Acc / *Qua x2) -2/Quarantine (discovered 2 exits: *Acc / *Sec) -2/Section 7 -1/Access (discovered 2 exits: Sur / *Com) -1/Command Tau Ceti IV Orbit History --------- Turn | Location | Event 1 | -11/Scrapyard | Upgraded with Power slot (x1) 1 | -11/Scrapyard | Upgraded with Propulsion slot (x1) 1 | -11/Scrapyard | Upgraded with Utility slot (x2) 1 | -11/Scrapyard | Upgraded with Weapon slot (x1) 6 | -11/Scrapyard | Discovered new exit (range 15) 27 | -11/Scrapyard | Entered Materials 73 | -10/Materials | Discovered new exit (range 16) 87 | -10/Materials | Discovered new exit (range 16) 106 | -10/Materials | Identified exit to Mines 433 | -10/Materials | Entered Mines 434 | -10/Mines | Learned location of Storage (-7) 435 | -10/Mines | Reached level 2 443 | -10/Mines | A weapon hastily lodged in a ceiling crevice suddenly fell to the ground 444 | -10/Mines | Learned Materials terminal intel 450 | -10/Mines | Received a Rocket Launcher from a helpful Derelict 451 | -10/Mines | Discovered new exit (range 8) 453 | -10/Mines | Identified exit to Materials 482 | -10/Mines | Discovered new exit (range 5) 531 | -10/Mines | Deemed a non-threat by the Exiles lab entrance 531 | -10/Mines | Discovered new exit (range 5) 532 | -10/Mines | Identified exit to Exiles 563 | -10/Mines | Build established: Scout 656 | -10/Mines | Assembled infested the area 661 | -10/Mines | Assisted by a Guerilla fighting off Assembled 782 | -10/Mines | Entered Exiles 782 | -10/Exiles | Accompanied by 2 allies 787 | -10/Exiles | Discovered new exit (range 15) 792 | -10/Exiles | Met 8R-AWN 798 | -10/Exiles | Met EX-HEX 808 | -10/Exiles | Met EX-BIN 812 | -10/Exiles | Led the pair of lost Derelicts to a safe place 821 | -10/Exiles | Met EX-DEC 842 | -10/Exiles | Discovered new exit (range 14) 846 | -10/Exiles | Identified exit to Mines 847 | -10/Exiles | Entered Mines 852 | -9/Mines | Received a Mining Laser from a helpful Derelict 874 | -9/Mines | Reached level 3 898 | -9/Mines | Assisted by bots powering up and referring to "LRC-V3" 917 | -9/Mines | Found the Drone Emporium 919 | -9/Mines | Upgraded with Propulsion slot (x1) 919 | -9/Mines | Found Prototype Device 919 | -9/Mines | Identified Sensor Drone Bay 960 | -9/Mines | Found a damaged Exp. Sensor Array with a note attached 961 | -9/Mines | Found Prototype Device 961 | -9/Mines | Identified Exp. Sensor Array 997 | -9/Mines | Discovered new exit (range 9) 1008 | -9/Mines | Identified exit to Materials 1020 | -9/Mines | Build established: Hacker-Scout 1058 | -9/Mines | Discovered exit to Materials (range 11) 1061 | -9/Mines | Met a Derelict who couldn't figure out how to use a Trap Extractor 1138 | -9/Mines | Entered Materials 1138 | -8/Materials | Accompanied by 4 allies 1139 | -8/Materials | Loaded intel: 12 terminal locations 1140 | -8/Materials | Reached level 4 1140 | -8/Materials | Reached level 5 1140 | -8/Materials | Reached level 6 1144 | -8/Materials | Upgraded with Power slot (x1) 1144 | -8/Materials | Upgraded with Propulsion slot (x1) 1144 | -8/Materials | Upgraded with Utility slot (x2) 1244 | -8/Materials | Reached level 7 1433 | -8/Materials | Discovered new exit (range 11) 1453 | -8/Materials | Identified exit to Factory 1457 | -8/Materials | Reached level 8 1558 | -8/Materials | Upgraded with Utility slot (x1) 1563 | -8/Materials | Discovered exit to Factory (range 16) 1603 | -8/Materials | Reached level 9 1637 | -8/Materials | Discovered exit to Factory (range 14) 1744 | -8/Materials | Entered Factory 1744 | -7/Factory | Accompanied by 1 ally 1746 | -7/Factory | Reached level 10 1774 | -7/Factory | Reached level 11 1852 | -7/Factory | Fabricated VTOL Module? 1940 | -7/Factory | Upgraded with Propulsion slot (x1) 1940 | -7/Factory | Upgraded with Utility slot (x1) 1996 | -7/Factory | Discovered new exit (range 9) 1998 | -7/Factory | Identified exit to Storage 2040 | -7/Factory | Identified exit to Lower Caves 2137 | -7/Factory | Identified exit to Garrison 2137 | -7/Factory | Entered Garrison 2139 | -7/Garrison | Reached level 12 2299 | -7/Garrison | Triggered checkpoint 2331 | -7/Garrison | Core integrity fell below 50% 2343 | -7/Garrison | Reached level 13 2419 | -7/Garrison | Discovered new exit (range 10) 2421 | -7/Garrison | Identified exit to Factory 2425 | -7/Garrison | Triggered checkpoint 2519 | -7/Garrison | Triggered checkpoint 2561 | -7/Garrison | Discovered exit to Factory (range 10) 2595 | -7/Garrison | Triggered checkpoint 2599 | -7/Garrison | Garrison Relay disabled 2616 | -7/Garrison | Learned Factory security intel 2639 | -7/Garrison | Triggered checkpoint 2646 | -7/Garrison | Garrison Relay disabled 2653 | -7/Garrison | Discovered exit to Factory (range 15) 2701 | -7/Garrison | Reached level 14 2731 | -7/Garrison | Triggered checkpoint 2771 | -7/Garrison | Installed Relay Interface Framework 2816 | -7/Garrison | Entered Factory 2816 | -7/Factory | Accompanied by 2 allies 2859 | -7/Factory | Core integrity fell below 20% 3028 | -7/Factory | Discovered new exit (range 5) 3030 | -7/Factory | Identified exit to Factory 3211 | -7/Factory | Upgraded with Weapon slot (x1) 3216 | -7/Factory | First assault squad dispatched 3291 | -7/Factory | Reached level 15 3375 | -7/Factory | Discovered exit to Factory (range 7) 3977 | -7/Factory | Central database locked down 4016 | -7/Factory | Upgraded with Utility slot (x1) 4183 | -7/Factory | Discovered exit to Factory (range 7) 4309 | -7/Factory | Cargo convoy interrupted 4333 | -7/Factory | Entered Storage 4333 | -7/Storage | Accompanied by 1 ally 4335 | -7/Storage | Reached level 16 4509 | -7/Storage | Met 01-MTF 4543 | -7/Storage | Discovered exit to Factory (range 13) 4658 | -7/Storage | Discovered new exit (range 10) 4785 | -7/Storage | Used back door to open Recycling access 4786 | -7/Storage | Identified exit to Recycling 4798 | -7/Storage | Entered Recycling 4798 | -7/Recycling | Accompanied by 2 allies (01-MTF) 4800 | -7/Recycling | Reached level 17 4883 | -7/Recycling | Scanned before Scraplab entrance 4915 | -7/Recycling | Entered Scraplab 4925 | -7/Recycling | Discovered new exit (range 8) 4945 | -7/Recycling | Found Prototype Energy Gun 4950 | -7/Recycling | Identified KN-7UR's Autopenetrator 4986 | -7/Recycling | Discovered new exit (range 16) 5067 | -7/Recycling | Identified exit to Factory 5082 | -7/Recycling | Entered Factory 5082 | -5/Factory | Accompanied by 1 ally 5084 | -5/Factory | Reached level 18 5120 | -5/Factory | Discovered new exit (range 8) 5128 | -5/Factory | Identified exit to Upper Caves 5191 | -5/Factory | Discovered exit to Upper Caves (range 5) 5207 | -5/Factory | Discovered new exit (range 10) 5267 | -5/Factory | Identified exit to Garrison 5269 | -5/Factory | Entered Garrison 5269 | -5/Garrison | Accompanied by 2 allies 5271 | -5/Garrison | Reached level 19 5291 | -5/Garrison | Upgraded with Utility slot (x1) 5301 | -5/Garrison | Expanded RIF knowledge: Signal Jamming 5357 | -5/Garrison | Expanded RIF knowledge: Autooverride 5364 | -5/Garrison | Spotted B-75 Beast 5426 | -5/Garrison | Reached level 20 5445 | -5/Garrison | Triggered checkpoint 5472 | -5/Garrison | Triggered checkpoint 5481 | -5/Garrison | Triggered checkpoint 5498 | -5/Garrison | Destroyed 8 combat bots 5505 | -5/Garrison | Discovered new exit (range 12) 5505 | -5/Garrison | Discovered new exit (range 58) 5505 | -5/Garrison | Discovered new exit (range 69) 5516 | -5/Garrison | Triggered checkpoint 5562 | -5/Garrison | Identified exit to Factory 5562 | -5/Garrison | Upgraded with Utility slot (x1) 5562 | -5/Garrison | Entered Factory 5678 | -5/Factory | Discovered new exit (range 16) 5745 | -5/Factory | Discovered new exit (range 5) 5749 | -5/Factory | Identified exit to Factory 5862 | -5/Factory | First assault squad dispatched 5883 | -5/Factory | Fabricated Q-thruster (x2) 5970 | -5/Factory | Fabricated Adv. Terrain Scanner (x2) 6003 | -5/Factory | Reached level 21 6028 | -5/Factory | Destroyed 7 combat bots 6122 | -5/Factory | Identified exit to Garrison 6122 | -5/Factory | Entered Garrison 6161 | -5/Garrison | Learned Factory security intel 6294 | -5/Garrison | Discovered exit to Factory (range 15) 6321 | -5/Garrison | Rescued a captive Derelict 6327 | -5/Garrison | Rescued a captive Derelict 6340 | -5/Garrison | Triggered checkpoint 6342 | -5/Garrison | Triggered checkpoint 6401 | -5/Garrison | Destroyed 8 combat bots 6460 | -5/Garrison | Found Relay Coupler [Proto] 6462 | -5/Garrison | Triggered checkpoint 6462 | -5/Garrison | Found Relay Coupler [Proto] 6463 | -5/Garrison | Found Relay Coupler [Proto] 6465 | -5/Garrison | Found Relay Coupler [Proto] 6488 | -5/Garrison | Discovered exit to Factory (range 10) 6520 | -5/Garrison | Triggered checkpoint 6521 | -5/Garrison | Triggered checkpoint 6535 | -5/Garrison | Reached level 22 6622 | -5/Garrison | Triggered checkpoint 6642 | -5/Garrison | Discovered exit to Factory (range 8) 6670 | -5/Garrison | Destroyed 8 combat bots 6797 | -5/Garrison | Expanded RIF knowledge: Hotswap 6802 | -5/Garrison | Triggered checkpoint 6891 | -5/Garrison | Entered Factory 6891 | -4/Factory | Accompanied by 6 allies 6893 | -4/Factory | Reached level 23 6897 | -4/Factory | Identified exit to Garrison 6913 | -4/Factory | Entered Garrison 6913 | -4/Garrison | Accompanied by 6 allies 6917 | -4/Garrison | Spotted B-90 Cyclops 6933 | -4/Garrison | Destroyed B-90 Cyclops 6944 | -4/Garrison | Upgraded with Utility slot (x1) 6945 | -4/Garrison | Rewired B-86 Titan 6954 | -4/Garrison | Rewired B-90 Cyclops 6977 | -4/Garrison | Reached level 24 6994 | -4/Garrison | Triggered checkpoint 7019 | -4/Garrison | Spotted B-86 Titan 7029 | -4/Garrison | Triggered checkpoint 7032 | -4/Garrison | Destroyed 8 combat bots 7038 | -4/Garrison | Core integrity fell below 50% 7040 | -4/Garrison | Triggered checkpoint 7047 | -4/Garrison | Allies destroyed B-86 Titan 7048 | -4/Garrison | Triggered checkpoint 7059 | -4/Garrison | Core integrity fell below 20% 7103 | -4/Garrison | Lost 6 allies 7121 | -4/Garrison | Triggered checkpoint 7150 | -4/Garrison | Discovered new exit (range 59) 7150 | -4/Garrison | Discovered new exit (range 26) 7150 | -4/Garrison | Discovered new exit (range 73) 7184 | -4/Garrison | Expanded RIF knowledge: Alert ID Control 7184 | -4/Garrison | Reached level 25 7216 | -4/Garrison | Expanded RIF knowledge: Coupler Efficiency 7227 | -4/Garrison | Triggered checkpoint 7228 | -4/Garrison | Garrison Relay disabled 7276 | -4/Garrison | Identified exit to Extension 7339 | -4/Garrison | Triggered checkpoint 7345 | -4/Garrison | Heavy support dispatched to Extension 7359 | -4/Garrison | Garrison Relay disabled 7449 | -4/Garrison | Entered Extension 7449 | -4/Extension | Accompanied by 1 ally 7452 | -4/Extension | Disrupted transfer network 7487 | -4/Extension | Spotted B-86 Titan 7514 | -4/Extension | Destroyed B-86 Titan 7680 | -4/Extension | Rescued a captive Derelict 7680 | -4/Extension | Rescued a captive Derelict 7696 | -4/Extension | Reached level 26 7699 | -4/Extension | First assault squad dispatched 7736 | -4/Extension | Rescued a captive Derelict 7736 | -4/Extension | Rescued a captive Derelict 7754 | -4/Extension | Rescued a captive Derelict 7754 | -4/Extension | Rescued a captive Derelict 7757 | -4/Extension | Identified exit to Research 7760 | -4/Extension | Rescued a captive Derelict 7761 | -4/Extension | Rescued a captive Derelict 7776 | -4/Extension | Spotted B-86 Titan 7794 | -4/Extension | Allies destroyed B-86 Titan 7829 | -4/Extension | Destroyed 7 combat bots 7847 | -4/Extension | Lost 11 allies 7858 | -4/Extension | Rescued a captive Derelict 7859 | -4/Extension | Rescued a captive Derelict 8013 | -4/Extension | Rescued A7 8037 | -4/Extension | Discovered new exit (range 6) 8044 | -4/Extension | Identified exit to Cetus 8132 | -4/Extension | Entered Cetus 8132 | -4/Cetus | Accompanied by 12 allies (A7) 8136 | -4/Cetus | Spotted Cetus Guard 8136 | -4/Cetus | Spotted Cetus Guard 8137 | -4/Cetus | Acquired a Cetus Manufacturing Module code from A7 8137 | -4/Cetus | Spotted Cetus Guard 8140 | -4/Cetus | Spotted Cetus Guard 8141 | -4/Cetus | Assimilated Cetus Guard with formatsys_high 8143 | -4/Cetus | Assimilated Cetus Guard with formatsys_high 8149 | -4/Cetus | Assimilated Cetus Guard with formatsys_high 8153 | -4/Cetus | Destroyed Cetus Guard 8181 | -4/Cetus | Started Cetus Manufacturing Module 8206 | -4/Cetus | Manufactured an Enhanced Grunt 8227 | -4/Cetus | Discovered new exit (range 15) 8231 | -4/Cetus | Manufactured an Enhanced Grunt 8233 | -4/Cetus | Spotted Cetus Guard 8233 | -4/Cetus | Spotted Cetus Guard 8233 | -4/Cetus | Spotted Cetus Guard 8234 | -4/Cetus | Discovered exit to Research (range 16) 8235 | -4/Cetus | Spotted Cetus Guard 8244 | -4/Cetus | Destroyed Cetus Guard 8245 | -4/Cetus | Allies destroyed Cetus Guard 8246 | -4/Cetus | Destroyed Cetus Guard 8248 | -4/Cetus | Met Revision 17 8256 | -4/Cetus | Manufactured an Enhanced Grunt 8260 | -4/Cetus | Destroyed Cetus Guard 8281 | -4/Cetus | Manufactured an Enhanced Grunt 8306 | -4/Cetus | Manufactured an Enhanced Grunt 8461 | -4/Cetus | Entered Research 8461 | -3/Research | Accompanied by 20 allies (A7) 8463 | -3/Research | Reached level 27 8500 | -3/Research | Upgraded with Utility slot (x1) 8561 | -3/Research | Build established: Commander-Ninja 8586 | -3/Research | Discovered new exit (range 9) 8588 | -3/Research | Identified exit to Research 8596 | -3/Research | Discovered new exit (range 13) 8599 | -3/Research | Identified exit to Testing 8661 | -3/Research | Revision forces began assault on 0b10 8664 | -3/Research | Found Prototype Device 8664 | -3/Research | Identified Exp. EM Disruption Field 8689 | -3/Research | Reached level 28 8757 | -3/Research | Met up with Revision 17++ 8975 | -3/Research | Build established: Bothacker-Ninja 8997 | -3/Research | Fabricated Exp. Sensor Array (x1) 9118 | -3/Research | Entered Testing 9180 | -3/Testing | Found Prototype Energy Gun 9180 | -3/Testing | Identified Hyp. EM Gauss Rifle 9214 | -3/Testing | Spotted Striker 9214 | -3/Testing | Spotted Striker 9217 | -3/Testing | Assimilated Striker with formatsys_high 9220 | -3/Testing | Assimilated Striker with formatsys_high 9222 | -3/Testing | Spotted Alpha 7 9222 | -3/Testing | Assimilated Alpha 7 with formatsys_high 9247 | -3/Testing | Reached level 29 9251 | -3/Testing | Found Prototype Energy Cannon 9251 | -3/Testing | Identified Cld. Nova Cannon 9267 | -3/Testing | Core integrity fell below 50% 9273 | -3/Testing | Found Prototype Device 9273 | -3/Testing | Identified Exp. Thermal Shield 9300 | -3/Testing | Discovered exit to Research (range 19) 9322 | -3/Testing | Spotted PD-2BYKVTCQ54 9322 | -3/Testing | Assimilated PD-2BYKVTCQ54 with formatsys_high 9541 | -3/Testing | Destroyed Striker 9574 | -3/Testing | Found Exp. Hacking Suite 9784 | -3/Testing | Build established: Hacker-Scout 9799 | -3/Testing | Entered Research 9799 | -2/Research | Accompanied by 4 allies 9801 | -2/Research | Reached level 30 9835 | -2/Research | Identified exit to Quarantine 9883 | -2/Research | Discovered new exit (range 23) 9934 | -2/Research | Spotted B-90 Cyclops 9937 | -2/Research | Entered Quarantine 9941 | -2/Quarantine | Lost 4 allies 9953 | -2/Quarantine | Spotted Alpha 7 9957 | -2/Quarantine | Assimilated Alpha 7 with formatsys_high 9975 | -2/Quarantine | Found Subatomic Replicator 9984 | -2/Quarantine | Upgraded with Utility slot (x1) 10032 | -2/Quarantine | Found Alien Energy Cannon 10032 | -2/Quarantine | Identified Core Cannon 10051 | -2/Quarantine | Upgraded with Weapon slot (x1) 10057 | -2/Quarantine | Found Alien Slashing Weapon 10057 | -2/Quarantine | Identified Sigix Broadsword 10115 | -2/Quarantine | Discovered new exit (range 13) 10130 | -2/Quarantine | Core integrity fell below 50% 10158 | -2/Quarantine | Core integrity fell below 20% 10182 | -2/Quarantine | Found Alien Artifact 10182 | -2/Quarantine | Identified Core Reset Matrix 10182 | -2/Quarantine | Reached level 31 10182 | -2/Quarantine | Used Core Reset Matrix 10186 | -2/Quarantine | Detected hypermatrix surge 10186 | -2/Quarantine | Sensed 12 artifacts in vicinity 10190 | -2/Quarantine | Met incapacitated Sigix Warrior 10190 | -2/Quarantine | Lockdown squad dispatched 10195 | -2/Quarantine | Found Sigix Containment Pod 10236 | -2/Quarantine | Discovered new exit (range 23) 10253 | -2/Quarantine | Spotted Lightning 10262 | -2/Quarantine | Spotted Lightning 10262 | -2/Quarantine | Spotted Lightning 10325 | -2/Quarantine | Spotted Fortress 10346 | -2/Quarantine | Discovered new exit (range 5) 10347 | -2/Quarantine | Identified exit to Section 7 10347 | -2/Quarantine | Entered Section 7 10348 | -2/Section 7 | Sensed 18 artifacts in vicinity 10349 | -2/Section 7 | Reached level 32 10386 | -2/Section 7 | Build established: Hacker-Ninja 10404 | -2/Section 7 | Found Integrated Mediator 10404 | -2/Section 7 | Installed Integrated Mediator, increased core attachment efficiency 10427 | -2/Section 7 | Spotted S7 Guard 10447 | -2/Section 7 | Spotted Alpha 7 10555 | -2/Section 7 | Found Sigix Sheargun 10561 | -2/Section 7 | Spotted Striker 10561 | -2/Section 7 | Spotted Striker 10570 | -2/Section 7 | Found Sigix Shearcannon 10612 | -2/Section 7 | Spotted B-99 Colossus 10623 | -2/Section 7 | Found Integrated Dissipator 10623 | -2/Section 7 | Installed Integrated Dissipator, increased core heat dissipation (+20) 10635 | -2/Section 7 | Found LRC Inertial Stabilizer 10635 | -2/Section 7 | Installed LRC Inertial Stabilizer, increased mass support (+10) 10636 | -2/Section 7 | Found LRC Storage 10636 | -2/Section 7 | Installed LRC Storage, increased inventory capacity (+2) 10843 | -2/Section 7 | Found Integrated Mediator 10843 | -2/Section 7 | Installed Integrated Mediator, increased core attachment efficiency 10981 | -2/Section 7 | Found Microwarp Drive 11089 | -2/Section 7 | Spotted B-90 Cyclops 11089 | -2/Section 7 | Spotted S7 Guard 11103 | -2/Section 7 | Found Core Regenerator 11114 | -2/Section 7 | Discovered new exit (range 19) 11131 | -2/Section 7 | Identified exit to Access 11140 | -2/Section 7 | Build established: Alien-Scout 11184 | -2/Section 7 | Found Integrated Dissipator 11184 | -2/Section 7 | Installed Integrated Dissipator, increased core heat dissipation (+20) 11199 | -2/Section 7 | Entered Access 11199 | -1/Access | Accompanied by 1 ally 11200 | -1/Access | Core integrity fell below 50% 11201 | -1/Access | Reached level 33 11337 | -1/Access | Identified exit to Command 11574 | -1/Access | Emitted hypermatrix ping 11579 | -1/Access | Assembled emerged from beneath the floor 11615 | -1/Access | Assembled emerged from beneath the floor 11629 | -1/Access | Core integrity fell below 20% 11770 | -1/Access | Reached level 34 11916 | -1/Access | Lost 7 allies 11988 | -1/Access | Assembled emerged from beneath the floor 12102 | -1/Access | Assembled emerged from beneath the floor 12121 | -1/Access | Lost 7 allies 12162 | -1/Access | Found Unknown Device 12162 | -1/Access | Identified Launcher Loader 12199 | -1/Access | First assault squad dispatched 12242 | -1/Access | Assembled emerged from beneath the floor 12267 | -1/Access | Reached level 35 12302 | -1/Access | Lost 3 allies 12410 | -1/Access | Assembled emerged from beneath the floor 12418 | -1/Access | Energy Cycler disabled 12429 | -1/Access | Assembled emerged from beneath the floor 12453 | -1/Access | Discovered new exit (range 20) 12573 | -1/Access | Spotted B-99 Colossus 12579 | -1/Access | Lost 10 allies 12687 | -1/Access | Fabricated Particle Accelerator (x1) 12745 | -1/Access | Destroyed 7 combat bots 12810 | -1/Access | Used Subatomic Replicator to replicate Sigix Shearcannon 12820 | -1/Access | Entered Command 12884 | -1/Command | Reached level 36 12925 | -1/Command | Upgraded with Propulsion slot (x1) 13010 | -1/Command | Destroyed 7 combat bots 13070 | -1/Command | First assault squad dispatched 13108 | -1/Command | Phase Generator disabled 13226 | -1/Command | Build established: Hacker-Sprinter 13229 | -1/Command | Disengaged cave seal 13351 | -1/Command | High security lockdown imminent 13361 | -1/Command | Spotted Striker 13368 | -1/Command | Spotted M Guard 13368 | -1/Command | Spotted M Guard 13368 | -1/Command | Spotted Combat Programmer 13368 | -1/Command | Spotted Combat Programmer 13377 | -1/Command | Spotted Executioner 13378 | -1/Command | Spotted Executioner 13414 | -1/Command | Destroyed Combat Programmer 13418 | -1/Command | Emitted hypermatrix ping 13423 | -1/Command | Assembled emerged from beneath the floor 13425 | -1/Command | Destroyed Combat Programmer 13431 | -1/Command | High security lockdown engaged 13450 | -1/Command | Destroyed 8 combat bots 13505 | -1/Command | Assembled emerged from beneath the floor 13523 | -1/Command | Lost 4 allies 13552 | -1/Command | Assembled emerged from beneath the floor 13606 | -1/Command | Spotted Investigator 13607 | -1/Command | Allies destroyed Investigator 13615 | -1/Command | Spotted Executioner 13617 | -1/Command | Destroyed Executioner 13619 | -1/Command | Spotted Striker 13620 | -1/Command | Spotted Executioner 13620 | -1/Command | Spotted Executioner 13621 | -1/Command | Reached level 37 13621 | -1/Command | Destroyed Striker 13630 | -1/Command | Destroyed Executioner 13636 | -1/Command | Allies destroyed Executioner 13662 | -1/Command | Lost 5 allies 13747 | -1/Command | Spotted Striker 13748 | -1/Command | Spotted Executioner 13756 | -1/Command | Destroyed Striker 13765 | -1/Command | Lost 6 allies 13783 | -1/Command | Build established: Alien-Sprinter 13787 | -1/Command | Destroyed Executioner 13845 | -1/Command | Destroyed 22 combat bots 13909 | -1/Command | Assembled emerged from beneath the floor 13930 | -1/Command | Assembled emerged from beneath the floor 13933 | -1/Command | Spotted Executioner 13933 | -1/Command | Spotted Striker 13938 | -1/Command | Spotted Striker 13939 | -1/Command | Spotted Striker 13939 | -1/Command | Spotted Striker 13939 | -1/Command | Spotted Striker 13943 | -1/Command | Spotted Executioner 13943 | -1/Command | Spotted Executioner 13943 | -1/Command | Spotted Executioner 13943 | -1/Command | Spotted Striker 13943 | -1/Command | Destroyed Striker 13944 | -1/Command | Spotted Executioner 13946 | -1/Command | Destroyed Striker 13951 | -1/Command | Spotted Striker 13952 | -1/Command | Destroyed Striker 13952 | -1/Command | Destroyed Executioner 13956 | -1/Command | Destroyed Striker 13960 | -1/Command | Destroyed Executioner 13965 | -1/Command | System corruption reached 10% 13965 | -1/Command | Spotted Striker 13971 | -1/Command | Destroyed Executioner 13987 | -1/Command | Destroyed Striker 13987 | -1/Command | Destroyed Executioner 13989 | -1/Command | Lost 16 allies 13990 | -1/Command | Destroyed Executioner 13998 | -1/Command | Destroyed Striker 14034 | -1/Command | Spotted Striker 14034 | -1/Command | Spotted Striker 14037 | -1/Command | Destroyed Striker 14037 | -1/Command | Destroyed Striker 14065 | -1/Command | Destroyed 26 combat bots 14170 | -1/Command | Assembled emerged from beneath the floor 14173 | -1/Command | Spotted Executioner 14174 | -1/Command | Spotted Executioner 14189 | -1/Command | Destroyed Executioner 14200 | -1/Command | Reached level 38 14207 | -1/Command | Destroyed Executioner 14223 | -1/Command | Lost 8 allies 14256 | -1/Command | Spotted Striker 14256 | -1/Command | Spotted Executioner 14256 | -1/Command | Spotted Executioner 14260 | -1/Command | Destroyed Executioner 14264 | -1/Command | Destroyed Executioner 14277 | -1/Command | Destroyed Striker 14298 | -1/Command | Destroyed 45 combat bots 14477 | -1/Command | Spotted Executioner 14477 | -1/Command | Spotted Executioner 14477 | -1/Command | Spotted Executioner 14496 | -1/Command | Spotted Striker 14497 | -1/Command | Destroyed Striker 14504 | -1/Command | Spotted Executioner 14505 | -1/Command | Destroyed Executioner 14505 | -1/Command | Destroyed Executioner 14526 | -1/Command | Destroyed 26 combat bots 14532 | -1/Command | Found Prototype Processor 14532 | -1/Command | Identified Exp. Core Analyzer 14542 | -1/Command | Found Prototype Processor 14542 | -1/Command | Identified Exp. Targeting Computer 14576 | -1/Command | Destroyed Executioner 14576 | -1/Command | Destroyed Executioner 14771 | -1/Command | Spotted Alpha 7 14771 | -1/Command | Spotted Executioner 14771 | -1/Command | Spotted Executioner 14771 | -1/Command | Spotted Striker 14771 | -1/Command | Spotted Alpha 7 14792 | -1/Command | Destroyed Striker 14810 | -1/Command | Destroyed Executioner 14810 | -1/Command | Destroyed Executioner 14814 | -1/Command | Destroyed Alpha 7 14891 | -1/Command | Spotted B-99 Colossus 14899 | -1/Command | Destroyed B-99 Colossus 14970 | -1/Command | Destroyed M Guard 14985 | -1/Command | Found Prototype Device 14985 | -1/Command | Identified AEGIS Remote Shield 15009 | -1/Command | Destroyed M Guard 15009 | -1/Command | All MAIN.C guards destroyed 15188 | -1/Command | Destroyed Striker 15220 | -1/Command | Destroyed Executioner 15222 | -1/Command | Destroyed Alpha 7 15228 | -1/Command | Spotted B-99 Colossus 15256 | -1/Command | Destroyed Executioner 15275 | -1/Command | Destroyed B-99 Colossus 15278 | -1/Command | Found Prototype Ballistic Gun 15278 | -1/Command | Identified Multirail 15287 | -1/Command | Found Multirail 15289 | -1/Command | Found Multirail 15305 | -1/Command | Found Multirail 15438 | -1/Command | Destroyed 10 combat bots 15573 | -1/Command | Destroyed 9 combat bots 15777 | -1/Command | Destroyed 13 combat bots 15859 | -1/Command | Destroyed 11 combat bots 15906 | -1/Command | Destroyed 11 combat bots 15953 | -1/Command | Destroyed 15 combat bots 16015 | -1/Command | Reached level 39 16062 | -1/Command | Destroyed 27 combat bots 16219 | -1/Command | Destroyed 11 combat bots 16399 | -1/Command | Found Prototype Device 16399 | -1/Command | Identified Exp. ECM Suite 16453 | -1/Command | Discovered new exit (range 20) 16577 | -1/Command | Build established: Alien-Scout 16578 | -1/Command | Found Corrupted Prototype Device 16578 | -1/Command | Identified Adv. Kinecellerator 16615 | -1/Command | Found Prototype Processor 16615 | -1/Command | Identified Exp. Targeting Computer 16619 | -1/Command | Found Prototype Processor 16619 | -1/Command | Identified Exp. Target Analyzer 16931 | -1/Command | Destroyed 8 combat bots 16960 | -1/Command | Identified exit to Surface 16960 | *** | Destroyed 0b10! Last Messages --------------- 16949_ Field strength at 20. 16950_ Stasis field depleted. 16950_ Triggered Stasis Trap. 16950_ A bubble of rippling energy engulfs the area. 16950_ Field strength at 80. 16950_ Field strength at 60. 16951_ Field strength at 40. 16952_ Field strength at 20. 16953_ Stasis field depleted. 16953_ Triggered Stasis Trap. 16953_ A bubble of rippling energy engulfs the area. 16953_ Field strength at 80. 16954_ Field strength at 60. 16955_ Field strength at 40. 16956_ Field strength at 20. 16957_ Stasis field depleted. 16958_ The Access Shell folds into the floor. 16960_ EXIT=IDENTIFIED: SURFACE Map ----- +----------------------------------------------------+ | # ###?#######?##??#??### | | % #?#?##?#????##??###?## | | #% % #?##??###?#?###?####?# | | ######### ##?#??#?????#?##?#??#? | | #######?# % "" """ #???????????#???#??#?? | | ######?## % " "T""" ##????????????#?##?##? | | ?##?##?## "###########+#####??????????#??????## | | ###?######"#""##### ##???????????#?#??# | | #?### ## #?#??????????????## | | ##?## ## #???????????????### | | ##### " ## ##????????????????# | | #?# " " ! ## #?#???????????????# | | #?# "T ## #??#??????????????# | | ### " " ## ##????????????????## | | # " ## !!! #??#???????????????? | | # ## ## !! ###????????????????? | | # # ## !! #??????????????????? | | # ################????????????????? | | # ! # #######?###?#???????????????????? | | = [*# % #?##############????????????????? | | ""%##"#"""""######## #????????????????? | | % % % " #?#?# #????????????????? | | % % ######?# #????????????????? | | #*!####! # ### #????????????????? | | #=!##?#!% # ### #????????????????? | | #%=#?##!=% # ### @" #????????????????? | | ##!####%|! # #?# "" #????????????????? | | ?#=####[!] + ### #????????????????? | | ##=####+##### *"## #????????????????? | | ## # # "## ^ ^ #????????????????? | | ##!# # = ### #????????????????? | | ## # #% * "## #????????????????? | | ##%# ##+######;; #####?#?????????#?#?# | | ##=# ] ! ##!####?## ^ ^ #?###???????????#??? | | ##%# == ##]#######; ^###??#?#????????????? | | ##*" [!!!#"=####### #??????????????#??#? | | ##=# [!=!!"#!#######; ########????##????### | | ##!# *%%[!" !####### #???##?#?#?????####? | | ##!####+=#####=########^ ^ ##??#?#??#?#?####?### | | # * ! ### ###### ^ ##?###?#??###?#??##? | | # ### ####### ###??############???? | | # % "" ### ##?#??# ^ ####?#####?##?####### | | # """" ### ########++++######?##############? | | #* """" ### ######## ###################### | | # "" #### ####### #?#################### | | # ### # ###################### | | # = ####!!# " ! # #?################## | | #####+"##!####=!##"=%=! "####################? | | ==*!%=% %[]!=!!!!%!*]! ################ | | =%%/ ! !%= !*[%! !%! % #?###?########## | +----------------------------------------------------+ Best States ------------- Heat Dissipation 199 Energy Generation 78 Energy Capacity 555 Matter Stores 300 Matter Capacity 300 Sight Range 22 Robot Scan Range 30 Terrain Scan Range 24 Terrain Scan Density 1010 ECM Strength 4 Jamming Range 16 Cloak Strength 2 Additional Mass Support 20 Base Temperature (-) 200 EM Shielding 4 Armor Coverage 225 Resistance: KI 40 Resistance: TH 30 Resistance: EX 25 Resistance: EM 45 Resistance: I 20 Resistance: S 20 Resistance: P 20 Point Defense Rating 160 Weapon Cycling 25 Evasion (%) 77 Targeting Accuracy 20 Melee Accuracy 8 Target Analysis 14 Core Analysis 8 Energy Filtering 30 Particle Charging 40 Kinecelleration 50 Offensive Hacking 41 Defensive Hacking 17 Relay Coupler Types 3 Relay Coupler Value 198 Item Schematics ----------------- Particle Accelerator | -1/Access | Hacked Robot Schematics ------------------ None Fabricated ------------ VTOL Module | x2 | -7/Factory Q-thruster | x2 | -5/Factory Adv. Terrain Scanner | x2 | -5/Factory Exp. Sensor Array | x1 | -3/Research Particle Accelerator | x1 | -1/Access Alien Tech Used ----------------- Core Cannon Sigix Broadsword Core Reset Matrix Integrated Mediator Sigix Sheargun Sigix Shearcannon Integrated Dissipator LRC Inertial Stabilizer LRC Storage Subatomic Replicator Microwarp Drive Achievements -------------- None Challenges ------------ None RPGLIKE | -11 -10 -10 -10 -9 -8 -7 -7 -7 -7 -7 -5 -5 -5 -5 -4 -4 -4 -4 -3 -3 -2 -2 -2 -1 -1 --------- Run | Yrd Mat Min Exi Min Mat Fac Gar Fac Sto Rec Fac Gar Fac Gar Fac Gar Ext Cet Res Tes Res Qua Sec Acc Com Levels Raised 38 | . . 1 . 1 6 2 3 1 1 1 1 2 1 1 1 2 1 . 2 1 1 1 1 3 4 XP Earned 61320 | 4000 1020 605 200 1633 9589 3158 3664 2628 1206 558 2390 2555 974 2102 1500 2841 1937 364 2417 957 1770 2098 1010 4548 5596 XP Spent 58855 | 3950 50 1445 . 800 7550 4905 1500 4350 . . 1610 5500 950 1000 . 4070 . 1100 3500 . . 5205 2970 3000 5400 Upgrades 90 | 11 1 12 . 1 8 8 3 4 . . 7 2 2 1 . 4 . 1 1 . . 6 4 4 10 Power Slot 2 | 1 . . . . 1 . . . . . . . . . . . . . . . . . . . . Propulsion Slot 5 | 1 . . . 1 1 1 . . . . . . . . . . . . . . . . . . 1 Utility Slot 12 | 2 . . . . 3 1 . 1 . . . 2 . . . 1 . . 1 . . 1 . . . Weapon Slot 3 | 1 . . . . . . . 1 . . . . . . . . . . . . . 1 . . . Core Integrity 9 | . . . . . . . . . . . . . . . . . . . . . . 3 2 . 4 Heat Dissipation 16 | . . 4 . . . 2 . . . . 7 . . . . . . . . . . . . . 3 Energy Generation 5 | . . . . . 2 . . . . . . . 1 . . . . . . . . . . . 2 Mass Support 4 | 1 . . . . 1 . . . . . . . . . . . . 1 . . . . 1 . . Inventory Capacity 6 | 1 . . . . . . . 2 . . . . . 1 . . . . . . . . 1 1 . Sensor Range 5 | . . 2 . . . 2 . . . . . . 1 . . . . . . . . . . . . Terrain Scan Density 8 | . 1 4 . . . . . . . . . . . . . 3 . . . . . . . . . Ranged Accuracy 3 | . . . . . . . . . . . . . . . . . . . . . . . . 3 . Melee Accuracy 1 | . . . . . . . . . . . . . . . . . . . . . . 1 . . . Hack Attack % 3 | . . 1 . . . 2 . . . . . . . . . . . . . . . . . . . Hack Defense % 1 | . . 1 . . . . . . . . . . . . . . . . . . . . . . . KI Resistance % 1 | 1 . . . . . . . . . . . . . . . . . . . . . . . . . TH Resistance % 2 | 2 . . . . . . . . . . . . . . . . . . . . . . . . . EX Resistance % 1 | 1 . . . . . . . . . . . . . . . . . . . . . . . . . KI Damage % 3 | . . . . . . . 3 . . . . . . . . . . . . . . . . . . Protomatter Created 13274 | . 46 . . 28 329 45 135 576 261 65 62 244 179 627 . 571 910 180 98 170 28 . 107 783 7830 Integrity Restored 21151 | . 51 64 . 18 345 135 405 1234 797 198 135 481 269 766 . 1124 1341 519 396 1135 . . 321 2145 9272 Core 16745 | . 51 45 . 5 295 135 405 1118 529 165 82 396 196 580 . 901 1106 405 320 842 . . 321 1889 6959 Parts 4406 | . . 19 . 13 50 . . 116 268 33 53 85 73 186 . 223 235 114 76 293 . . . 256 2313 Protomatter Decayed 6587 | . . 75 . 21 193 . . 210 99 38 13 77 85 389 . 194 715 . 1576 269 . . . 362 2271 Game ------ Seed BackupPoweredDissipator Manual? 0 Play Time 06:10:10 Cumulative 351.9 hours Start 2025.04.28 @ 18:30:40 End 2025.04.30 @ 14:52:37 Sessions 13 Manual Loads 0 Difficulty Adventurer Special Mode Winter2019/RPGLIKE Game No. 133 Rogue 0 Adventurer 133 Explorer 0 Win Type 3 Total 13 Types 2/3/3/3/1/0/0/0/1 Lore% 88 Gallery% 84 Achievement% 81 Wizard Run 0 Options --------- Layout 2 ASCII 0 Keyboard 0 Movement Numpad Keybinds 0 Fullscreen 2 Font 24/Smallcaps Map View 50x44 Zoom Use 0% Tactical HUD 1 Map Filters NONE Filters NONE Steam 1 RUN: 32532ff9-e653-4f15-8470-48fde13233a3